{"text_format":"1","workbook":"xlsx","n_sheets":21,"sheets":["1. Information Sheet","2. Related Links","3. Rate Class Selection","4. Hidden","6. hidden","4. Growth Factor - NUM_CALC1","5. Growth Factor - NUM_CALC2","9. STS - Billing Det & Rate HID","6. Rev_Requ_Check","7. Growth Factor - DEN_CALC","7. Load Actual - HID","8. Revenue Proportions","8. Current Revenue - HID","9. Threshold Test","24. hidden","lists","Sheet1","10a. Proposed ACM Projects","10b. Proposed ACM ICM Projects","11. Incremental Capital Adj.","12. Opt 1-Rate Rider Calc F & V"],"not_rendered":{"charts":0,"images":5,"macros":1,"external_links":5,"defined_names":566,"comments":0,"pivot_tables":0},"unopened":[],"bounds":{"document_bytes":16777216,"sheet_cells":100000,"rows_first":2000,"rows_last":500,"rows_between":2000,"halvings":0,"cell_chars":16384,"cell_head_chars":4096},"cells_cut":0,"cells_raw":0,"read":"whole","date_system":"1900"}

{"sheet":"1. Information Sheet","index":0,"n_rows":117,"n_cols":27,"rows_kept":117,"cut":false,"hidden":false,"merged":[[43,5,43,7],[35,0,35,4],[35,5,35,7],[45,5,45,7],[41,5,41,7],[39,5,39,7],[37,0,37,4],[37,5,37,7],[47,9,51,12],[65,0,65,12],[52,2,52,11],[54,2,54,13],[56,2,56,12],[47,0,48,4],[47,5,47,7],[48,5,48,7],[13,5,13,11],[15,5,15,9],[17,5,17,9],[21,5,21,9],[19,5,19,9],[23,5,23,9],[33,5,33,7],[33,0,33,4],[25,0,25,4],[25,5,25,7],[27,0,27,4],[31,5,31,7],[27,5,27,7],[29,0,29,4],[29,5,29,7]]}
[null,null,null,null,null,null,null,null,null,null,null,null,null,null,null,null,null,null,null,null,"a",null,null,null,null,null,{"$f":"IF(OR(F16=\"\", F16=\"(if applicable)\"), F14, F14 & \" - \" & F16)","v":"London Hydro Inc."}]
[]
[]
[]
[]
[]
[]
[]
[]
[]
[]
["Note:  Depending on the selections made below, certain worksheets in this workbook will be hidden.",null,null,null,null,null,null,null,null,null,null,null,"Version",3.01]
[]
[null,null,null,null,"Utility Name   ","London Hydro Inc."]
[]
[null,null,null,null,"Service Territory (if filing more than one model)"]
[]
[null,null,null,null,"Assigned EB Number","EB-2016-0091"]
[]
[null,null,null,null,"Name of Contact and Title","Martin Benum, Director of Regulatory Affairs"]
[]
[null,null,null,null,"Phone Number   ","519-661-5800 x5750"]
[]
[null,null,null,null,"Email Address   ","benumm@londonhydro.com"]
[]
["Is this Capital Module being filed in a CoS or \nPrice-Cap IR Application?",null,null,null,null,"COS",null,null,null,"Rate Year",2017]
[]
[{"$f":"\"Indicate the Price-Cap IR Year (1, 2, 3, 4, etc) in which \" &F14 & \" is applying:\"","v":"Indicate the Price-Cap IR Year (1, 2, 3, 4, etc) in which London Hydro Inc. is applying:"},null,null,null,null,2]
[]
[{"$f":"\"For which Rate Year is \" &F14 & \" seeking approval for its CoS application?\"","v":"For which Rate Year is London Hydro Inc. seeking approval for its CoS application?"}]
[]
[null,null,null,null,{"$f":"F14 & \" is applying for:\"","v":"London Hydro Inc. is applying for:"},"ACM Approval"]
[]
["Last Rebasing Year:",null,null,null,null,{"$f":"IF(F26=\"COS\", K26-F28, VLOOKUP(F28, D109:E117,2,FALSE))","v":2015}]
[]
["Last COS OEB Application Number",null,null,null,null,"EB-2012-0146"]
[]
["The most recent complete year for which actual billing and load data exists",null,null,null,null,{"$f":"K26-2","v":2015}]
[]
[null,null,null,null,"Current IPI",2.1000000000000001E-2]
[]
[null,null,null,null,"Strech Factor Assigned to Middle Cohort","III"]
[]
[null,null,null,null,"Stretch Factor Value",3.0000000000000001E-3]
[]
[null,null,null,null,"Price Cap Index",{"$f":"F40-F44","v":1.8000000000000002E-2}]
[]
["Based on the inputs above, the growth factor utilized in the Materiality Threshold Calculation will be determined by:",null,null,null,null,{"$f":"IF($F$26=\"COS\", $K$26 & \" Test Year Distribution Revenues\", VLOOKUP($F$28, $D$109:$G$117, 3,FALSE))","v":"2017 Test Year Distribution Revenues"},null,null,{"$f":"LEFT(F48,4)","v":"2017"},"These will be hidden later. For year three price cap IR, it should be most recent actuals for 2014 divided by 2013 CoS Board-approved. For year 4 price cap IR, should be 2014 actuals divided by 2012 CoS Board-approved."]
[null,null,null,null,null,{"$f":"IF(F26=\"COS\",F38&\" Actual Distribution Revenues\",VLOOKUP($F$28, $D$109:$G$117, 4,FALSE))","v":"2015 Actual Distribution Revenues"},null,null,{"$f":"LEFT(F49,4)","v":"2015"}]
[]
[null,"Notes"]
[]
[null,null,"Pale green cells represent input cells."]
[]
[null,null,"Pale blue cells represent drop-down lists.  The applicant should select the appropriate item from the drop-down list."]
[]
[null,null,"White cells contain fixed values, automatically generated values or formulae. "]
[]
[]
[]
[]
[]
[]
[]
[]
["OEB policies regarding rate-setting and rebasing following distributor consolidations could allow a distributor to not rebase rates for up to ten years. A distributor could also apply for and receive OEB approval to defer rebasing. If a distributor is under Price Cap IR for more than four years after rebasing and applies for an ICM, this spreadsheet will need to be adapted to accommodate those circumstances. The distributor should contact OEB staff to discuss the circumstances so that a customized model can be provided."]
[]
[]
[]
[]
[]
[]
[]
[]
[]
[]
[]
[]
[]
[]
[]
[]
[]
[]
[]
[]
[]
[]
[]
[]
[]
[]
[null,"CoS",null,"Price Cap IR",null,null,null,"Deferred Rebasing (e.g. due to MAADs)"]
[null,null,"Year",1,2,3,4,5,6,7,8]
["RY",{"$f":"K26","v":2017},"t",{"$f":"K26","v":2017},{"$f":"D95","v":2017},{"$f":"D95","v":2017},{"$f":"F95","v":2017},2016,2016,2016,2016]
["LY ACTUALS",{"$f":"B95-2","v":2015},"t-2",{"$f":"D95-2","v":2015},{"$f":"E95-2","v":2015},2015,2015,2014,2014,2014,2014]
["LAST COS",null,null,{"$f":"D95-1","v":2016},{"$f":"E95-2","v":2015},{"$f":"F95-3","v":2014},{"$f":"G95-G94","v":2013},{"$f":"H95-5","v":2011},{"$f":"I95-6","v":2010},{"$f":"J95-7","v":2009},{"$f":"K95-8","v":2008}]
[]
["Growth"]
["Numerator",{"$f":"B95&\" Test Year Distribution Revenues\"","v":"2017 Test Year Distribution Revenues"}," ",{"$f":"D97&\" Board-Approved Distribution Revenues\"","v":"2016 Board-Approved Distribution Revenues"},{"$f":"E97&\" Board-Approved Distribution Revenues\"","v":"2015 Board-Approved Distribution Revenues"},{"$f":"F97+1&\" Actual Distribution Revenues\"","v":"2015 Actual Distribution Revenues"},{"$f":"G97+2&\" Actual Distribution Revenues\"","v":"2015 Actual Distribution Revenues"},{"$f":"H97+3&\" Actual Distribution Revenues\"","v":"2014 Actual Distribution Revenues"},{"$f":"I97+4&\" Actual Distribution Revenues\"","v":"2014 Actual Distribution Revenues"},{"$f":"J97+5&\" Actual Distribution Revenues\"","v":"2014 Actual Distribution Revenues"},{"$f":"K97+6&\" Actual Distribution Revenues\"","v":"2014 Actual Distribution Revenues"}]
["Denominator",{"$f":"B96&\" Actual Distribution Revenues\"","v":"2015 Actual Distribution Revenues"}," ",{"$f":"D96&\" Actual Distribution Revenues\"","v":"2015 Actual Distribution Revenues"},{"$f":"E96-1&\" Actual Distribution Revenues\"","v":"2014 Actual Distribution Revenues"},{"$f":"F97&\" Board-Approved Distribution Revenues\"","v":"2014 Board-Approved Distribution Revenues"},"2013 Board-Approved Distribution Revenues","2011 Board-Approved Distribution Revenues","2010 Board-Approved Distribution Revenues","2009 Board-Approved Distribution Revenues","2008 Board-Approved Distribution Revenues"]
["Annualized?","Yes",null,"No","No","No","Yes","Yes","Yes","Yes","Yes"]
["Divisor to Annulized",{"$f":"B106","v":2},null,1,1,1,2,3,4,5,6]
[null,{"$f":"LEFT(B100,4)","v":"2017"},null,{"$f":"LEFT(D100,4)","v":"2016"},"2015","2015","2015","2014","2014","2014","2014"]
[null,{"$f":"LEFT(B101,4)","v":"2015"},null,"2015","2014","2014","2013","2011","2010","2009","2008"]
[null,{"$f":"B104-B105","v":2},null,{"$f":"D104-D105","v":1},1,1,2,3,4,5,6]
[]
[]
[null,null,null,"Price Cap IR","Last CoS"]
[null,null,null,1,{"$f":"D97","v":2016},{"$f":"D100","v":"2016 Board-Approved Distribution Revenues"},{"$f":"D101","v":"2015 Actual Distribution Revenues"}]
[null,null,null,2,{"$f":"E97","v":2015},{"$f":"E100","v":"2015 Board-Approved Distribution Revenues"},{"$f":"E101","v":"2014 Actual Distribution Revenues"}]
[null,null,null,3,{"$f":"F97","v":2014},{"$f":"F100","v":"2015 Actual Distribution Revenues"},{"$f":"F101","v":"2014 Board-Approved Distribution Revenues"}]
[null,null,null,4,{"$f":"G97","v":2013},{"$f":"G100","v":"2015 Actual Distribution Revenues"},{"$f":"G101","v":"2013 Board-Approved Distribution Revenues"}]
[null,null,null,5,{"$f":"H97","v":2011},{"$f":"H100","v":"2014 Actual Distribution Revenues"},{"$f":"H101","v":"2011 Board-Approved Distribution Revenues"}]
[null,null,null,6,{"$f":"I97","v":2010},{"$f":"I100","v":"2014 Actual Distribution Revenues"},{"$f":"I101","v":"2010 Board-Approved Distribution Revenues"}]
[null,null,null,7,{"$f":"J97","v":2009},{"$f":"J100","v":"2014 Actual Distribution Revenues"},{"$f":"J101","v":"2009 Board-Approved Distribution Revenues"}]
[null,null,null,8,{"$f":"K97","v":2008},{"$f":"K100","v":"2014 Actual Distribution Revenues"},{"$f":"K101","v":"2008 Board-Approved Distribution Revenues"}]

{"sheet":"2. Related Links","index":1,"n_rows":15,"n_cols":1,"rows_kept":15,"cut":false,"hidden":true,"merged":[[12,1,12,7],[14,0,14,13]]}
[]
[]
[]
[]
[]
[]
[]
[]
[]
[]
[]
[]
[]
[]
["intentionally blank"]

{"sheet":"3. Rate Class Selection","index":2,"n_rows":33,"n_cols":17,"rows_kept":33,"cut":false,"hidden":false,"merged":[[25,1,25,9],[26,1,26,9],[24,1,24,9],[23,1,23,9],[21,1,21,9],[22,1,22,9],[11,0,11,13],[18,1,18,9],[17,1,17,9],[19,1,19,9],[20,1,20,9]]}
[]
[]
[]
[]
[]
[]
[]
[]
[]
[]
[]
["Select the appropriate rate classes as they appear on your most recent Board-Approved Tariff of Rates and Charges, excluding the MicroFit Class."]
[]
["How many classes are on your most recent Board-Approved Tariff of Rates and Charges?",null,null,null,null,null,null,null,null,9]
[]
["Select Your Rate Classes from the Blue Cells below.  Please ensure that a rate class is assigned to each shaded cell."]
[]
[null,"Rate Class Classification",null,null,null,null,null,null,null,null,null,null,null,null,null,null,"# of duplicates"]
[1,"RESIDENTIAL",null,null,null,null,null,null,null,null,null,null,null,null,null,{"$f":"COUNTIF($B$19:$J$40, B19)","v":1},{"$f":"COUNTIF(P19:P40, 2)/2","v":0}]
[2,"GENERAL SERVICE LESS THAN 50 KW",null,null,null,null,null,null,null,null,null,null,null,null,null,{"$f":"COUNTIF($B$19:$J$40, B20)","v":1}]
[3,"GENERAL SERVICE 50 TO 4,999 KW",null,null,null,null,null,null,null,null,null,null,null,null,null,1]
[4,"GENERAL SERVICE 50 TO 4,999 KW (COGENERATION)",null,null,null,null,null,null,null,null,null,null,null,null,null,1]
[5,"STANDBY POWER",null,null,null,null,null,null,null,null,null,null,null,null,null,1]
[6,"LARGE USE",null,null,null,null,null,null,null,null,null,null,null,null,null,1]
[7,"STREET LIGHTING",null,null,null,null,null,null,null,null,null,null,null,null,null,1]
[8,"SENTINEL LIGHTING",null,null,null,null,null,null,null,null,null,null,null,null,null,1]
[9,"UNMETERED SCATTERED LOAD",null,null,null,null,null,null,null,null,null,null,null,null,null,1]
[null,null,null,null,null,null,null,null,null,null,null,null,null,null,null,0]
[null,null,null,null,null,null,null,null,null,null,null,null,null,null,null,0]
[null,null,null,null,null,null,null,null,null,null,null,null,null,null,null,0]
[null,null,null,null,null,null,null,null,null,null,null,null,null,null,null,0]
[null,null,null,null,null,null,null,null,null,null,null,null,null,null,null,0]
[null,null,null,null,null,null,null,null,null,null,null,null,null,null,null,0]

{"sheet":"4. Hidden","index":3,"n_rows":456,"n_cols":18,"rows_kept":456,"cut":false,"hidden":true,"merged":[[453,1,453,6],[454,1,454,6],[455,1,455,6],[444,1,444,6],[445,1,445,6],[446,1,446,6],[447,1,447,6],[448,1,448,6],[449,1,449,6],[450,1,450,6],[451,1,451,6],[452,1,452,6],[435,1,435,6],[436,1,436,6],[437,1,437,6],[438,1,438,6],[439,1,439,6],[440,1,440,6],[441,1,441,6],[442,1,442,6],[443,1,443,6],[426,1,426,6],[427,1,427,6],[428,1,428,6],[429,1,429,6],[430,1,430,6],[431,1,431,6],[432,1,432,6],[433,1,433,6],[434,1,434,6],[396,1,396,6],[397,1,397,6],[398,1,398,6],[401,1,401,8],[403,1,408,8],[411,1,413,8],[414,1,417,8],[418,1,420,8],[421,1,424,8],[385,1,385,6],[386,1,386,6],[387,1,387,6],[388,1,388,6],[389,1,389,6],[390,1,390,6],[391,1,391,6],[392,1,392,6],[395,1,395,6],[376,1,376,6],[377,1,377,6],[378,1,378,6],[379,1,379,6],[380,1,380,6],[381,1,381,6],[382,1,382,6],[383,1,383,6],[384,1,384,6],[367,1,367,6],[368,1,368,6],[369,1,369,6],[370,1,370,6],[371,1,371,6],[372,1,372,6],[373,1,373,6],[374,1,374,6],[375,1,375,6],[340,1,345,8],[348,1,350,8],[351,1,354,8],[355,1,357,8],[358,1,361,8],[363,1,363,6],[364,1,364,6],[365,1,365,6],[366,1,366,6],[326,1,326,6],[327,1,327,6],[328,1,328,6],[329,1,329,6],[332,1,332,6],[333,1,333,6],[334,1,334,6],[335,1,335,6],[338,1,338,8],[317,1,317,6],[318,1,318,6],[319,1,319,6],[320,1,320,6],[321,1,321,6],[322,1,322,6],[323,1,323,6],[324,1,324,6],[325,1,325,6],[308,1,308,6],[309,1,309,6],[310,1,310,6],[311,1,311,6],[312,1,312,6],[313,1,313,6],[314,1,314,6],[315,1,315,6],[316,1,316,6],[295,1,298,8],[300,1,300,6],[301,1,301,6],[302,1,302,6],[303,1,303,6],[304,1,304,6],[305,1,305,6],[306,1,306,6],[307,1,307,6],[269,1,269,6],[270,1,270,6],[271,1,271,6],[272,1,272,6],[275,1,275,8],[277,1,282,8],[285,1,287,8],[288,1,291,8],[292,1,294,8],[258,1,258,6],[259,1,259,6],[260,1,260,6],[261,1,261,6],[262,1,262,6],[263,1,263,6],[264,1,264,6],[265,1,265,6],[266,1,266,6],[249,1,249,6],[250,1,250,6],[251,1,251,6],[252,1,252,6],[253,1,253,6],[254,1,254,6],[255,1,255,6],[256,1,256,6],[257,1,257,6],[240,1,240,6],[241,1,241,6],[242,1,242,6],[243,1,243,6],[244,1,244,6],[245,1,245,6],[246,1,246,6],[247,1,247,6],[248,1,248,6],[212,1,212,8],[214,1,219,8],[222,1,224,8],[225,1,228,8],[229,1,231,8],[232,1,235,8],[237,1,237,6],[238,1,238,6],[239,1,239,6],[43,1,46,8],[48,1,48,6],[49,1,49,6],[50,1,50,6],[51,1,51,6],[23,1,23,8],[25,1,30,8],[33,1,35,8],[36,1,39,8],[40,1,42,8],[52,1,52,6],[58,1,58,6],[53,1,53,6],[54,1,54,6],[55,1,55,6],[56,1,56,6],[71,1,71,6],[72,1,72,6],[65,1,65,6],[63,1,63,6],[57,1,57,6],[59,1,59,6],[62,1,62,6],[64,1,64,6],[66,1,66,6],[60,1,60,6],[61,1,61,6],[75,1,75,6],[76,1,76,6],[67,1,67,6],[68,1,68,6],[69,1,69,6],[70,1,70,6],[106,1,109,8],[111,1,111,6],[112,1,112,6],[83,1,83,6],[80,1,80,6],[81,1,81,6],[82,1,82,6],[77,1,77,6],[73,1,73,6],[74,1,74,6],[113,1,113,6],[114,1,114,6],[86,1,86,8],[88,1,93,8],[96,1,98,8],[99,1,102,8],[103,1,105,8],[120,1,120,6],[121,1,121,6],[122,1,122,6],[123,1,123,6],[124,1,124,6],[115,1,115,6],[116,1,116,6],[117,1,117,6],[118,1,118,6],[119,1,119,6],[130,1,130,6],[131,1,131,6],[132,1,132,6],[133,1,133,6],[134,1,134,6],[125,1,125,6],[126,1,126,6],[127,1,127,6],[128,1,128,6],[129,1,129,6],[140,1,140,6],[143,1,143,6],[144,1,144,6],[145,1,145,6],[146,1,146,6],[135,1,135,6],[136,1,136,6],[137,1,137,6],[138,1,138,6],[139,1,139,6],[169,1,172,8],[174,1,174,6],[175,1,175,6],[176,1,176,6],[177,1,177,6],[149,1,149,8],[151,1,156,8],[159,1,161,8],[162,1,165,8],[166,1,168,8],[183,1,183,6],[184,1,184,6],[185,1,185,6],[186,1,186,6],[187,1,187,6],[178,1,178,6],[179,1,179,6],[180,1,180,6],[181,1,181,6],[182,1,182,6],[193,1,193,6],[194,1,194,6],[195,1,195,6],[196,1,196,6],[197,1,197,6],[188,1,188,6],[189,1,189,6],[190,1,190,6],[191,1,191,6],[192,1,192,6],[203,1,203,6],[206,1,206,6],[207,1,207,6],[208,1,208,6],[209,1,209,6],[198,1,198,6],[199,1,199,6],[200,1,200,6],[201,1,201,6],[202,1,202,6]]}
[null,null,null,null,null,null,null,null,null,null,null,null,"Current Rate Classes","Changed to Rate Classes","Values in A that are NOT in B","Values in B that are Not in A","Count of A","Count of B"]
[null,null,null,null,null,null,null,null,null,null,null,null,"RESIDENTIAL","RESIDENTIAL",null,null,3,3]
[null,null,null,null,null,null,null,null,null,null,null,null,"STREET LIGHTING","STREET LIGHTING"]
[null,null,null,null,null,null,null,null,null,null,null,null,"STANDBY POWER","STANDBY POWER"]
[]
[]
[]
[]
[]
[]
[]
[]
[]
[]
[]
[]
[]
[]
[]
[]
[]
[]
[]
["RESIDENTIAL","RESIDENTIAL Service Classification"]
["RESIDENTIAL"]
["RESIDENTIAL","This classification refers to the supply of electrical energy to residential customers residing in detached, semi detached, town house (freehold or condominium) dwelling units, duplexes or triplexes.  Suply will be limited up to a maximum of 200 amp @ 240/120 volt.  Further servicing details are available in the distributor's Conditions of Service"]
["RESIDENTIAL"]
["RESIDENTIAL"]
["RESIDENTIAL"]
["RESIDENTIAL"]
["RESIDENTIAL"]
["RESIDENTIAL","APPLICATION"]
["RESIDENTIAL"]
["RESIDENTIAL","The application of these rates and charges shall be in accordance with the Licence of the Distributor and any Code or Order of the Board, and amendments thereto as approved by the Board, which may be applicable to the administration of this schedule."]
["RESIDENTIAL"]
["RESIDENTIAL"]
["RESIDENTIAL","No rates and charges for the distribution of electricity and charges to meet the costs of any work or service done or furnished for the purpose of the distribution of electricityshall be made except as prmitted by this schedule, unless required by the Distributor's Licence or a Code or Order of the Board, and amendments thereto as approved by the Board, or as specified herein."]
["RESIDENTIAL"]
["RESIDENTIAL"]
["RESIDENTIAL"]
["RESIDENTIAL","Unless specifically noted, this schedule does not contain any charges for the electricity commodity, be it under the Regulated Price Plan, a contract with a retailer or the wholesale market price, as applicable.  In addition, the charges in the MONTHLY RATES AND CHARGES - Regulatory Component of this schedule fo not apply to a customer that is an embedded wholesale market participant."]
["RESIDENTIAL"]
["RESIDENTIAL"]
["RESIDENTIAL","It should be noted that this schedule does not list any charges, assessments or credits that are required by law to be invoiced by a distributor and that are not subject to Board approval, such as Debt Retirement Charge, the Global Adjustment, the Ontario Clean Energy Benefit and the HST."]
["RESIDENTIAL"]
["RESIDENTIAL"]
["RESIDENTIAL"]
["RESIDENTIAL","MONTHLY RATES AND CHARGES - Delivery Component      (If applicable, Effective Date MUST be included in rate description)"]
["RESIDENTIAL","Service Charge",null,null,null,null,null,"$",19.940000000000001]
["RESIDENTIAL","Rate Rider for Recovery of Stranded Meter Assets – effective until April 30, 2015",null,null,null,null,null,"$",1.27]
["RESIDENTIAL","Rate Rider for Smart Metering Entity Charge - effective until October 31, 2018",null,null,null,null,null,"$",0.79]
["RESIDENTIAL","Distribution Volumetric Rate",null,null,null,null,null,"$/kWh",1.46E-2]
["RESIDENTIAL","Low Voltage Service Rate",null,null,null,null,null,"$/kWh",3.3999999999999998E-3]
["RESIDENTIAL","Retail Transmission Rate - Network Service Rate",null,null,null,null,null,"$/kWh",6.0000000000000001E-3]
["RESIDENTIAL","Retail Transmission Rate - Line and Transformation Connection Service Rate",null,null,null,null,null,"$/kWh",4.1000000000000003E-3]
["RESIDENTIAL"]
["RESIDENTIAL"]
["RESIDENTIAL"]
["RESIDENTIAL"]
["RESIDENTIAL"]
["RESIDENTIAL"]
["RESIDENTIAL"]
["RESIDENTIAL"]
["RESIDENTIAL"]
["RESIDENTIAL"]
["RESIDENTIAL"]
["RESIDENTIAL"]
["RESIDENTIAL"]
["RESIDENTIAL"]
["RESIDENTIAL"]
["RESIDENTIAL"]
["RESIDENTIAL"]
["RESIDENTIAL"]
["RESIDENTIAL"]
["RESIDENTIAL"]
["RESIDENTIAL"]
["RESIDENTIAL"]
["RESIDENTIAL"]
["RESIDENTIAL","MONTHLY RATES AND CHARGES - Regulatory Component"]
["RESIDENTIAL"]
["RESIDENTIAL","Wholesale Market Service Rate",null,null,null,null,null,"$/kWh",4.4000000000000003E-3]
["RESIDENTIAL","Rural or Remote Electricity Rate Protection Charge (RRRP)",null,null,null,null,null,"$/kWh",1.2999999999999999E-3]
["RESIDENTIAL","Standard Supply Service - Administrative Charge (if applicable)",null,null,null,null,null,"$",0.25]
["RESIDENTIAL"]
[]
[]
["GENERAL SERVICE LESS THAN 50 KW","GENERAL SERVICE LESS THAN 50 KW Service Classification"]
["GENERAL SERVICE LESS THAN 50 KW"]
["GENERAL SERVICE LESS THAN 50 KW","This classification refers to a non-residential account taking electricity at 750 volts or less whose monthly peak demand is less than or is expected to be less than 50 kW.  Further servicing details are available in the distributor's Conditions of Service."]
["GENERAL SERVICE LESS THAN 50 KW"]
["GENERAL SERVICE LESS THAN 50 KW"]
["GENERAL SERVICE LESS THAN 50 KW"]
["GENERAL SERVICE LESS THAN 50 KW"]
["GENERAL SERVICE LESS THAN 50 KW"]
["GENERAL SERVICE LESS THAN 50 KW","APPLICATION"]
["GENERAL SERVICE LESS THAN 50 KW"]
["GENERAL SERVICE LESS THAN 50 KW","The application of these rates and charges shall be in accordance with the Licence of the Distributor and any Code or Order of the Board, and amendments thereto as approved by the Board, which may be applicable to the administration of this schedule."]
["GENERAL SERVICE LESS THAN 50 KW"]
["GENERAL SERVICE LESS THAN 50 KW"]
["GENERAL SERVICE LESS THAN 50 KW","No rates and charges for the distribution of electricity and charges to meet the costs of any work or service done or furnished for the purpose of the distribution of electricityshall be made except as prmitted by this schedule, unless required by the Distributor's Licence or a Code or Order of the Board, and amendments thereto as approved by the Board, or as specified herein."]
["GENERAL SERVICE LESS THAN 50 KW"]
["GENERAL SERVICE LESS THAN 50 KW"]
["GENERAL SERVICE LESS THAN 50 KW"]
["GENERAL SERVICE LESS THAN 50 KW","Unless specifically noted, this schedule does not contain any charges for the electricity commodity, be it under the Regulated Price Plan, a contract with a retailer or the wholesale market price, as applicable.  In addition, the charges in the MONTHLY RATES AND CHARGES - Regulatory Component of this schedule fo not apply to a customer that is an embedded wholesale market participant."]
["GENERAL SERVICE LESS THAN 50 KW"]
["GENERAL SERVICE LESS THAN 50 KW"]
["GENERAL SERVICE LESS THAN 50 KW","It should be noted that this schedule does not list any charges, assessments or credits that are required by law to be invoiced by a distributor and that are not subject to Board approval, such as Debt Retirement Charge, the Global Adjustment, the Ontario Clean Energy Benefit and the HST."]
["GENERAL SERVICE LESS THAN 50 KW"]
["GENERAL SERVICE LESS THAN 50 KW"]
["GENERAL SERVICE LESS THAN 50 KW"]
["GENERAL SERVICE LESS THAN 50 KW","MONTHLY RATES AND CHARGES - Delivery Component      (If applicable, Effective Date MUST be included in rate description)"]
["GENERAL SERVICE LESS THAN 50 KW","Service Charge",null,null,null,null,null,"$",43.19]
["GENERAL SERVICE LESS THAN 50 KW","Rate Rider for Recovery of Stranded Meter Assets – effective until April 30, 2015",null,null,null,null,null,"$",5.26]
["GENERAL SERVICE LESS THAN 50 KW","Rate Rider for Smart Metering Entity Charge - effective until October 31, 2018",null,null,null,null,null,"$",0.79]
["GENERAL SERVICE LESS THAN 50 KW","Distribution Volumetric Rate",null,null,null,null,null,"$/kWh",8.8000000000000005E-3]
["GENERAL SERVICE LESS THAN 50 KW","Low Voltage Service Rate",null,null,null,null,null,"$/kWh",3.0000000000000001E-3]
["GENERAL SERVICE LESS THAN 50 KW","Retail Transmission Rate - Network Service Rate",null,null,null,null,null,"$/kWh",5.4999999999999997E-3]
["GENERAL SERVICE LESS THAN 50 KW","Retail Transmission Rate - Line and Transformation Connection Service Rate",null,null,null,null,null,"$/kWh",3.8999999999999998E-3]
["GENERAL SERVICE LESS THAN 50 KW"]
["GENERAL SERVICE LESS THAN 50 KW"]
["GENERAL SERVICE LESS THAN 50 KW"]
["GENERAL SERVICE LESS THAN 50 KW"]
["GENERAL SERVICE LESS THAN 50 KW"]
["GENERAL SERVICE LESS THAN 50 KW"]
["GENERAL SERVICE LESS THAN 50 KW"]
["GENERAL SERVICE LESS THAN 50 KW"]
["GENERAL SERVICE LESS THAN 50 KW"]
["GENERAL SERVICE LESS THAN 50 KW"]
["GENERAL SERVICE LESS THAN 50 KW"]
["GENERAL SERVICE LESS THAN 50 KW"]
["GENERAL SERVICE LESS THAN 50 KW"]
["GENERAL SERVICE LESS THAN 50 KW"]
["GENERAL SERVICE LESS THAN 50 KW"]
["GENERAL SERVICE LESS THAN 50 KW"]
["GENERAL SERVICE LESS THAN 50 KW"]
["GENERAL SERVICE LESS THAN 50 KW"]
["GENERAL SERVICE LESS THAN 50 KW"]
["GENERAL SERVICE LESS THAN 50 KW"]
["GENERAL SERVICE LESS THAN 50 KW"]
["GENERAL SERVICE LESS THAN 50 KW"]
["GENERAL SERVICE LESS THAN 50 KW"]
["GENERAL SERVICE LESS THAN 50 KW","MONTHLY RATES AND CHARGES - Regulatory Component"]
["GENERAL SERVICE LESS THAN 50 KW"]
["GENERAL SERVICE LESS THAN 50 KW","Wholesale Market Service Rate",null,null,null,null,null,{"$f":"H81","v":"$/kWh"},4.4000000000000003E-3]
["GENERAL SERVICE LESS THAN 50 KW","Rural or Remote Electricity Rate Protection Charge (RRRP)",null,null,null,null,null,"$/kWh",1.2999999999999999E-3]
["GENERAL SERVICE LESS THAN 50 KW","Standard Supply Service - Administrative Charge (if applicable)",null,null,null,null,null,"$",0.25]
["GENERAL SERVICE LESS THAN 50 KW"]
[]
[]
["GENERAL SERVICE 50 TO 4,999 KW","GENERAL SERVICE 50 TO 4,999 KW Service Classification"]
["GENERAL SERVICE 50 TO 4,999 KW"]
["GENERAL SERVICE 50 TO 4,999 KW","This classification refers to a non residential account whose monthly average peak demand is equal to or greater than, or is espected to be equal to or greater than 50 kW but less then 5,000 kW.  Further servicing details are available in the distributor's Conditions of Service."]
["GENERAL SERVICE 50 TO 4,999 KW"]
["GENERAL SERVICE 50 TO 4,999 KW"]
["GENERAL SERVICE 50 TO 4,999 KW"]
["GENERAL SERVICE 50 TO 4,999 KW"]
["GENERAL SERVICE 50 TO 4,999 KW"]
["GENERAL SERVICE 50 TO 4,999 KW","APPLICATION"]
["GENERAL SERVICE 50 TO 4,999 KW"]
["GENERAL SERVICE 50 TO 4,999 KW","The application of these rates and charges shall be in accordance with the Licence of the Distributor and any Code or Order of the Board, and amendments thereto as approved by the Board, which may be applicable to the administration of this schedule."]
["GENERAL SERVICE 50 TO 4,999 KW"]
["GENERAL SERVICE 50 TO 4,999 KW"]
["GENERAL SERVICE 50 TO 4,999 KW","No rates and charges for the distribution of electricity and charges to meet the costs of any work or service done or furnished for the purpose of the distribution of electricityshall be made except as prmitted by this schedule, unless required by the Distributor's Licence or a Code or Order of the Board, and amendments thereto as approved by the Board, or as specified herein."]
["GENERAL SERVICE 50 TO 4,999 KW"]
["GENERAL SERVICE 50 TO 4,999 KW"]
["GENERAL SERVICE 50 TO 4,999 KW"]
["GENERAL SERVICE 50 TO 4,999 KW","Unless specifically noted, this schedule does not contain any charges for the electricity commodity, be it under the Regulated Price Plan, a contract with a retailer or the wholesale market price, as applicable.  In addition, the charges in the MONTHLY RATES AND CHARGES - Regulatory Component of this schedule fo not apply to a customer that is an embedded wholesale market participant."]
["GENERAL SERVICE 50 TO 4,999 KW"]
["GENERAL SERVICE 50 TO 4,999 KW"]
["GENERAL SERVICE 50 TO 4,999 KW","It should be noted that this schedule does not list any charges, assessments or credits that are required by law to be invoiced by a distributor and that are not subject to Board approval, such as Debt Retirement Charge, the Global Adjustment, the Ontario Clean Energy Benefit and the HST."]
["GENERAL SERVICE 50 TO 4,999 KW"]
["GENERAL SERVICE 50 TO 4,999 KW"]
["GENERAL SERVICE 50 TO 4,999 KW"]
["GENERAL SERVICE 50 TO 4,999 KW","MONTHLY RATES AND CHARGES - Delivery Component      (If applicable, Effective Date MUST be included in rate description)"]
["GENERAL SERVICE 50 TO 4,999 KW","Service Charge",null,null,null,null,null,"$",304.2]
["GENERAL SERVICE 50 TO 4,999 KW","Distribution Volumetric Rate",null,null,null,null,null,"$/kW",2.7353999999999998]
["GENERAL SERVICE 50 TO 4,999 KW","Low Voltage Service Rate",null,null,null,null,null,"$/kW",1.387]
["GENERAL SERVICE 50 TO 4,999 KW","Retail Transmission Rate - Network Service Rate",null,null,null,null,null,"$/kW",2.3628999999999998]
["GENERAL SERVICE 50 TO 4,999 KW","Retail Transmission Rate - Line and Transformation Connection Service Rate",null,null,null,null,null,"$/kW",1.6344000000000001]
["GENERAL SERVICE 50 TO 4,999 KW"]
["GENERAL SERVICE 50 TO 4,999 KW"]
["GENERAL SERVICE 50 TO 4,999 KW"]
["GENERAL SERVICE 50 TO 4,999 KW"]
["GENERAL SERVICE 50 TO 4,999 KW"]
["GENERAL SERVICE 50 TO 4,999 KW"]
["GENERAL SERVICE 50 TO 4,999 KW"]
["GENERAL SERVICE 50 TO 4,999 KW"]
["GENERAL SERVICE 50 TO 4,999 KW"]
["GENERAL SERVICE 50 TO 4,999 KW"]
["GENERAL SERVICE 50 TO 4,999 KW"]
["GENERAL SERVICE 50 TO 4,999 KW"]
["GENERAL SERVICE 50 TO 4,999 KW"]
["GENERAL SERVICE 50 TO 4,999 KW"]
["GENERAL SERVICE 50 TO 4,999 KW"]
["GENERAL SERVICE 50 TO 4,999 KW"]
["GENERAL SERVICE 50 TO 4,999 KW"]
["GENERAL SERVICE 50 TO 4,999 KW"]
["GENERAL SERVICE 50 TO 4,999 KW"]
["GENERAL SERVICE 50 TO 4,999 KW"]
["GENERAL SERVICE 50 TO 4,999 KW"]
["GENERAL SERVICE 50 TO 4,999 KW"]
["GENERAL SERVICE 50 TO 4,999 KW"]
["GENERAL SERVICE 50 TO 4,999 KW"]
["GENERAL SERVICE 50 TO 4,999 KW"]
["GENERAL SERVICE 50 TO 4,999 KW","MONTHLY RATES AND CHARGES - Regulatory Component"]
["GENERAL SERVICE 50 TO 4,999 KW"]
["GENERAL SERVICE 50 TO 4,999 KW","Wholesale Market Service Rate",null,null,null,null,null,{"$f":"H81","v":"$/kWh"},4.4000000000000003E-3]
["GENERAL SERVICE 50 TO 4,999 KW","Rural or Remote Electricity Rate Protection Charge (RRRP)",null,null,null,null,null,"$/kWh",1.2999999999999999E-3]
["GENERAL SERVICE 50 TO 4,999 KW","Standard Supply Service - Administrative Charge (if applicable)",null,null,null,null,null,"$",0.25]
["GENERAL SERVICE 50 TO 4,999 KW"]
[]
[]
["UNMETERED SCATTERED LOAD","UNMETERED SCATTERED LOAD Service Classification"]
["UNMETERED SCATTERED LOAD"]
["UNMETERED SCATTERED LOAD","This classification refers to a non-residiential account taking electricity at 240/120 or 120 volts whose monthly peak demand is less than or expected to be less than 50 kW and is unmetered.  A detailed calculation or the load will be calculated for billing purposes.  Further servicing detials are available in the distributor's Conditions of Service."]
["UNMETERED SCATTERED LOAD"]
["UNMETERED SCATTERED LOAD"]
["UNMETERED SCATTERED LOAD"]
["UNMETERED SCATTERED LOAD"]
["UNMETERED SCATTERED LOAD"]
["UNMETERED SCATTERED LOAD","APPLICATION"]
["UNMETERED SCATTERED LOAD"]
["UNMETERED SCATTERED LOAD","The application of these rates and charges shall be in accordance with the Licence of the Distributor and any Code or Order of the Board, and amendments thereto as approved by the Board, which may be applicable to the administration of this schedule."]
["UNMETERED SCATTERED LOAD"]
["UNMETERED SCATTERED LOAD"]
["UNMETERED SCATTERED LOAD","No rates and charges for the distribution of electricity and charges to meet the costs of any work or service done or furnished for the purpose of the distribution of electricityshall be made except as prmitted by this schedule, unless required by the Distributor's Licence or a Code or Order of the Board, and amendments thereto as approved by the Board, or as specified herein."]
["UNMETERED SCATTERED LOAD"]
["UNMETERED SCATTERED LOAD"]
["UNMETERED SCATTERED LOAD"]
["UNMETERED SCATTERED LOAD","Unless specifically noted, this schedule does not contain any charges for the electricity commodity, be it under the Regulated Price Plan, a contract with a retailer or the wholesale market price, as applicable.  In addition, the charges in the MONTHLY RATES AND CHARGES - Regulatory Component of this schedule fo not apply to a customer that is an embedded wholesale market participant."]
["UNMETERED SCATTERED LOAD"]
["UNMETERED SCATTERED LOAD"]
["UNMETERED SCATTERED LOAD","It should be noted that this schedule does not list any charges, assessments or credits that are required by law to be invoiced by a distributor and that are not subject to Board approval, such as Debt Retirement Charge, the Global Adjustment, the Ontario Clean Energy Benefit and the HST."]
["UNMETERED SCATTERED LOAD"]
["UNMETERED SCATTERED LOAD"]
["UNMETERED SCATTERED LOAD"]
["UNMETERED SCATTERED LOAD","MONTHLY RATES AND CHARGES - Delivery Component      (If applicable, Effective Date MUST be included in rate description)"]
["UNMETERED SCATTERED LOAD","Service Charge",null,null,null,null,null,"$",12.35]
["UNMETERED SCATTERED LOAD","Distribution Volumetric Rate",null,null,null,null,null,"$/kWh",5.5999999999999999E-3]
["UNMETERED SCATTERED LOAD","Low Voltage Service Rate",null,null,null,null,null,"$/kWh",3.0000000000000001E-3]
["UNMETERED SCATTERED LOAD","Retail Transmission Rate - Network Service Rate",null,null,null,null,null,"$/kWh",5.4999999999999997E-3]
["UNMETERED SCATTERED LOAD","Retail Transmission Rate - Line and Transformation Connection Service Rate",null,null,null,null,null,"$/kWh",3.8999999999999998E-3]
["UNMETERED SCATTERED LOAD"]
["UNMETERED SCATTERED LOAD"]
["UNMETERED SCATTERED LOAD"]
["UNMETERED SCATTERED LOAD"]
["UNMETERED SCATTERED LOAD"]
["UNMETERED SCATTERED LOAD"]
["UNMETERED SCATTERED LOAD"]
["UNMETERED SCATTERED LOAD"]
["UNMETERED SCATTERED LOAD"]
["UNMETERED SCATTERED LOAD"]
["UNMETERED SCATTERED LOAD"]
["UNMETERED SCATTERED LOAD"]
["UNMETERED SCATTERED LOAD"]
["UNMETERED SCATTERED LOAD"]
["UNMETERED SCATTERED LOAD"]
["UNMETERED SCATTERED LOAD"]
["UNMETERED SCATTERED LOAD"]
["UNMETERED SCATTERED LOAD"]
["UNMETERED SCATTERED LOAD"]
["UNMETERED SCATTERED LOAD"]
["UNMETERED SCATTERED LOAD"]
["UNMETERED SCATTERED LOAD"]
["UNMETERED SCATTERED LOAD"]
["UNMETERED SCATTERED LOAD"]
["UNMETERED SCATTERED LOAD"]
["UNMETERED SCATTERED LOAD","MONTHLY RATES AND CHARGES - Regulatory Component"]
["UNMETERED SCATTERED LOAD"]
["UNMETERED SCATTERED LOAD","Wholesale Market Service Rate",null,null,null,null,null,{"$f":"H81","v":"$/kWh"},4.4000000000000003E-3]
["UNMETERED SCATTERED LOAD","Rural or Remote Electricity Rate Protection Charge (RRRP)",null,null,null,null,null,"$/kWh",1.2999999999999999E-3]
["UNMETERED SCATTERED LOAD","Standard Supply Service - Administrative Charge (if applicable)",null,null,null,null,null,"$",0.25]
["UNMETERED SCATTERED LOAD"]
[]
[]
["SENTINEL LIGHTING","SENTINEL LIGHTING Service Classification"]
["SENTINEL LIGHTING"]
["SENTINEL LIGHTING","This classification refers to accounts that are unmetered lighting load supplied to a sentinel light.  Further servicing details are available in the distributor's Conditions of Service."]
["SENTINEL LIGHTING"]
["SENTINEL LIGHTING"]
["SENTINEL LIGHTING"]
["SENTINEL LIGHTING"]
["SENTINEL LIGHTING"]
["SENTINEL LIGHTING","APPLICATION"]
["SENTINEL LIGHTING"]
["SENTINEL LIGHTING","The application of these rates and charges shall be in accordance with the Licence of the Distributor and any Code or Order of the Board, and amendments thereto as approved by the Board, which may be applicable to the administration of this schedule."]
["SENTINEL LIGHTING"]
["SENTINEL LIGHTING"]
["SENTINEL LIGHTING","No rates and charges for the distribution of electricity and charges to meet the costs of any work or service done or furnished for the purpose of the distribution of electricityshall be made except as prmitted by this schedule, unless required by the Distributor's Licence or a Code or Order of the Board, and amendments thereto as approved by the Board, or as specified herein."]
["SENTINEL LIGHTING"]
["SENTINEL LIGHTING"]
["SENTINEL LIGHTING"]
["SENTINEL LIGHTING","Unless specifically noted, this schedule does not contain any charges for the electricity commodity, be it under the Regulated Price Plan, a contract with a retailer or the wholesale market price, as applicable.  In addition, the charges in the MONTHLY RATES AND CHARGES - Regulatory Component of this schedule fo not apply to a customer that is an embedded wholesale market participant."]
["SENTINEL LIGHTING"]
["SENTINEL LIGHTING"]
["SENTINEL LIGHTING","It should be noted that this schedule does not list any charges, assessments or credits that are required by law to be invoiced by a distributor and that are not subject to Board approval, such as Debt Retirement Charge, the Global Adjustment, the Ontario Clean Energy Benefit and the HST."]
["SENTINEL LIGHTING"]
["SENTINEL LIGHTING"]
["SENTINEL LIGHTING"]
["SENTINEL LIGHTING","MONTHLY RATES AND CHARGES - Delivery Component      (If applicable, Effective Date MUST be included in rate description)"]
["SENTINEL LIGHTING","Service Charge",null,null,null,null,null,"$",6.19]
["SENTINEL LIGHTING","Distribution Volumetric Rate",null,null,null,null,null,"$/kW",21.418600000000001]
["SENTINEL LIGHTING","Low Voltage Service Rate",null,null,null,null,null,"$/kW",0.9526]
["SENTINEL LIGHTING","Retail Transmission Rate - Network Service Rate",null,null,null,null,null,"$/kW",1.7656000000000001]
["SENTINEL LIGHTING","Retail Transmission Rate - Line and Transformation Connection Service Rate",null,null,null,null,null,"$/kW",1.2044999999999999]
["SENTINEL LIGHTING"]
["SENTINEL LIGHTING"]
["SENTINEL LIGHTING"]
["SENTINEL LIGHTING"]
["SENTINEL LIGHTING"]
["SENTINEL LIGHTING"]
["SENTINEL LIGHTING"]
["SENTINEL LIGHTING"]
["SENTINEL LIGHTING"]
["SENTINEL LIGHTING"]
["SENTINEL LIGHTING"]
["SENTINEL LIGHTING"]
["SENTINEL LIGHTING"]
["SENTINEL LIGHTING"]
["SENTINEL LIGHTING"]
["SENTINEL LIGHTING"]
["SENTINEL LIGHTING"]
["SENTINEL LIGHTING"]
["SENTINEL LIGHTING"]
["SENTINEL LIGHTING"]
["SENTINEL LIGHTING"]
["SENTINEL LIGHTING"]
["SENTINEL LIGHTING"]
["SENTINEL LIGHTING"]
["SENTINEL LIGHTING"]
["SENTINEL LIGHTING","MONTHLY RATES AND CHARGES - Regulatory Component"]
["SENTINEL LIGHTING"]
["SENTINEL LIGHTING","Wholesale Market Service Rate",null,null,null,null,null,{"$f":"H81","v":"$/kWh"},4.4000000000000003E-3]
["SENTINEL LIGHTING","Rural or Remote Electricity Rate Protection Charge (RRRP)",null,null,null,null,null,"$/kWh",1.2999999999999999E-3]
["SENTINEL LIGHTING","Standard Supply Service - Administrative Charge (if applicable)",null,null,null,null,null,"$",0.25]
["SENTINEL LIGHTING"]
[]
[]
["STREET LIGHTING","STREET LIGHTING Service Classification"]
["STREET LIGHTING"]
["STREET LIGHTING","This classification refers too accounts concerning roadway lighting for a Municipality, Regional Municipality, and/or the Ministry of Transportation.  This lighting will be controlled by photocells.  The consumption for these customers will be based on the calculated connected load times as established in the approved OEB Street Lighting Load Shape Template.  Further servicing details are available in the distributor's Conditions of Service."]
["STREET LIGHTING"]
["STREET LIGHTING"]
["STREET LIGHTING"]
["STREET LIGHTING"]
["STREET LIGHTING"]
["STREET LIGHTING","APPLICATION"]
["STREET LIGHTING"]
["STREET LIGHTING","The application of these rates and charges shall be in accordance with the Licence of the Distributor and any Code or Order of the Board, and amendments thereto as approved by the Board, which may be applicable to the administration of this schedule."]
["STREET LIGHTING"]
["STREET LIGHTING"]
["STREET LIGHTING","No rates and charges for the distribution of electricity and charges to meet the costs of any work or service done or furnished for the purpose of the distribution of electricityshall be made except as prmitted by this schedule, unless required by the Distributor's Licence or a Code or Order of the Board, and amendments thereto as approved by the Board, or as specified herein."]
["STREET LIGHTING"]
["STREET LIGHTING"]
["STREET LIGHTING"]
["STREET LIGHTING","Unless specifically noted, this schedule does not contain any charges for the electricity commodity, be it under the Regulated Price Plan, a contract with a retailer or the wholesale market price, as applicable.  In addition, the charges in the MONTHLY RATES AND CHARGES - Regulatory Component of this schedule fo not apply to a customer that is an embedded wholesale market participant."]
["STREET LIGHTING"]
["STREET LIGHTING"]
["STREET LIGHTING","It should be noted that this schedule does not list any charges, assessments or credits that are required by law to be invoiced by a distributor and that are not subject to Board approval, such as Debt Retirement Charge, the Global Adjustment, the Ontario Clean Energy Benefit and the HST."]
["STREET LIGHTING"]
["STREET LIGHTING"]
["STREET LIGHTING"]
["STREET LIGHTING","MONTHLY RATES AND CHARGES - Delivery Component      (If applicable, Effective Date MUST be included in rate description)"]
["STREET LIGHTING","Service Charge",null,null,null,null,null,"$",5.0999999999999996]
["STREET LIGHTING","Distribution Volumetric Rate",null,null,null,null,null,"$/kW",15.6152]
["STREET LIGHTING","Low Voltage Service Rate",null,null,null,null,null,"$/kW",0.93300000000000005]
["STREET LIGHTING","Retail Transmission Rate - Network Service Rate",null,null,null,null,null,"$/kW",1.7211000000000001]
["STREET LIGHTING","Retail Transmission Rate - Line and Transformation Connection Service Rate",null,null,null,null,null,"$/kW",1.1929000000000001]
["STREET LIGHTING"]
["STREET LIGHTING"]
["STREET LIGHTING"]
["STREET LIGHTING"]
["STREET LIGHTING"]
["STREET LIGHTING"]
["STREET LIGHTING"]
["STREET LIGHTING"]
["STREET LIGHTING"]
["STREET LIGHTING"]
["STREET LIGHTING"]
["STREET LIGHTING"]
["STREET LIGHTING"]
["STREET LIGHTING"]
["STREET LIGHTING"]
["STREET LIGHTING"]
["STREET LIGHTING"]
["STREET LIGHTING"]
["STREET LIGHTING"]
["STREET LIGHTING"]
["STREET LIGHTING"]
["STREET LIGHTING"]
["STREET LIGHTING"]
["STREET LIGHTING"]
["STREET LIGHTING"]
["STREET LIGHTING","MONTHLY RATES AND CHARGES - Regulatory Component"]
["STREET LIGHTING"]
["STREET LIGHTING","Wholesale Market Service Rate",null,null,null,null,null,"$/kWh",4.4000000000000003E-3]
["STREET LIGHTING","Rural or Remote Electricity Rate Protection Charge (RRRP)",null,null,null,null,null,"$/kWh",1.2999999999999999E-3]
["STREET LIGHTING","Standard Supply Service - Administrative Charge (if applicable)",null,null,null,null,null,"$",0.25]
["STREET LIGHTING"]
[]
[]
["microFIT","microFIT Service Classification"]
["microFIT"]
["microFIT","This classification applies to an electricity generation facility contracted under the Ontario Power Authority's microFIT prgram and connected to the distributor's distribution system.  Further servicing details are available in the distributor's Conditions of Service."]
["microFIT"]
["microFIT"]
["microFIT"]
["microFIT"]
["microFIT"]
["microFIT","APPLICATION"]
["microFIT"]
["microFIT","The application of these rates and charges shall be in accordance with the Licence of the Distributor and any Code or Order of the Board, and amendments thereto as approved by the Board, which may be applicable to the administration of this schedule."]
["microFIT"]
["microFIT"]
["microFIT","No rates and charges for the distribution of electricity and charges to meet the costs of any work or service done or furnished for the purpose of the distribution of electricityshall be made except as prmitted by this schedule, unless required by the Distributor's Licence or a Code or Order of the Board, and amendments thereto as approved by the Board, or as specified herein."]
["microFIT"]
["microFIT"]
["microFIT"]
["microFIT","Unless specifically noted, this schedule does not contain any charges for the electricity commodity, be it under the Regulated Price Plan, a contract with a retailer or the wholesale market price, as applicable.  In addition, the charges in the MONTHLY RATES AND CHARGES - Regulatory Component of this schedule fo not apply to a customer that is an embedded wholesale market participant."]
["microFIT"]
["microFIT"]
["microFIT","It should be noted that this schedule does not list any charges, assessments or credits that are required by law to be invoiced by a distributor and that are not subject to Board approval, such as Debt Retirement Charge, the Global Adjustment, the Ontario Clean Energy Benefit and the HST."]
["microFIT"]
["microFIT"]
["microFIT"]
["microFIT","MONTHLY RATES AND CHARGES - Delivery Component      (If applicable, Effective Date MUST be included in rate description)"]
["microFIT","Service Charge",null,null,null,null,null,"$",5.4]
["microFIT"]
["microFIT"]
["microFIT"]
["microFIT"]
["microFIT"]
["microFIT"]
["microFIT"]
["microFIT"]
["microFIT"]
["microFIT"]
["microFIT"]
["microFIT"]
["microFIT"]
["microFIT"]
["microFIT"]
["microFIT"]
["microFIT"]
["microFIT"]
["microFIT"]
["microFIT"]
["microFIT"]
["microFIT"]
["microFIT"]
["microFIT"]
["microFIT"]
["microFIT"]
["microFIT"]
["microFIT"]
["microFIT"]

{"sheet":"6. hidden","index":4,"n_rows":5,"n_cols":15,"rows_kept":5,"cut":false,"hidden":true,"merged":[[0,10,1,10],[0,12,1,12],[0,4,1,4],[0,5,1,5],[0,6,1,6],[0,7,1,7],[0,8,1,8],[0,9,1,9],[0,11,1,11]]}
[null,null,null,null,"Billed kWh for Non-RPP Customers","Estimated kW for Non-RPP Customers","Distribution Revenue 1","1590 Recovery Share Proportion*","1595 Recovery Share Proportion (2008) 2","1595 Recovery Share Proportion (2009) 2","1595 Recovery Share Proportion (2010) 2","1595 Recovery Share Proportion (2011) 2","1568 LRAM Variance Account Class Allocation"]
["Rate Class","Unit","Metered kWh","Metered kW"]
["RESIDENTIAL","$/kWh",0,0,0,null,0,0,0,0,0,0,0,0,0]
["STREET LIGHTING","$/kW",0,0,0,null,0,0,0,0,0,0,0,0,0]
["STANDBY POWER",0,0,0,0,null,0,0,0,0,0,0,0,0,0]

{"sheet":"4. Growth Factor - NUM_CALC1","index":5,"n_rows":25,"n_cols":9,"rows_kept":25,"cut":false,"hidden":false,"merged":[[14,6,14,8],[14,2,14,4],[12,0,12,4]]}
[]
[]
[]
[]
[]
[]
[]
[]
[]
[]
[]
[]
[{"$f":"\"Input the billing determinants and base distribution rates associated with \" & '1. Information Sheet'!F14 & \"'s \" & '1. Information Sheet'!F48 & \".  Sheets 4 & 5 calculate the NUMERATOR portion of the growth factor calculation.\"","v":"Input the billing determinants and base distribution rates associated with London Hydro Inc.'s 2017 Test Year Distribution Revenues.  Sheets 4 & 5 calculate the NUMERATOR portion of the growth factor calculation."}]
[]
[null,null,{"$f":"'1. Information Sheet'!F48","v":"2017 Test Year Distribution Revenues"},null,null,null,{"$f":"C15","v":"2017 Test Year Distribution Revenues"}]
["Rate Class","Units","Billed Customers or Connections","Billed kWh","Billed kW\n(if applicable)",null,"Monthly Service Charge","Distribution Volumetric Rate kWh","Distribution Volumetric Rate kW"]
["RESIDENTIAL","$/kWh",142509,1068671798,0,null,20.11,8.2000000000000007E-3,0]
["GENERAL SERVICE LESS THAN 50 KW","$/kWh",12999,371911863,0,null,32.879999999999995,1.09E-2,0]
["GENERAL SERVICE 50 TO 4,999 KW","$/kW",1611,1486650046.6505947,3778018.43830118,null,162.32999999999998,0,2.7963]
["GENERAL SERVICE 50 TO 4,999 KW (COGENERATION)","$/kW",4,34191555,65844,null,2650,0,4.6482000000000001]
["STANDBY POWER","$/kW",0,0,154800,null,0,0,3.2101000000000002]
["LARGE USE","$/kW",1,82923505,159628,null,21350,0,2.3178000000000001]
["STREET LIGHTING","$/kW",35912,19502488,54607,null,1.71,0,8.8278999999999996]
["SENTINEL LIGHTING","$/kW",599,706221,1907,null,3.7699999999999996,0,12.4297]
["UNMETERED SCATTERED LOAD","$/kWh",1537,5464035,0,null,2.25,1.95E-2,0]

{"sheet":"5. Growth Factor - NUM_CALC2","index":6,"n_rows":26,"n_cols":19,"rows_kept":26,"cut":false,"hidden":false,"merged":[[13,2,13,8]]}
[]
[]
[]
[]
[]
[]
[]
[]
[]
[]
[]
[{"$f":"IF('1. Information Sheet'!F26=\"COS\", \"Calculation of \" & '1. Information Sheet'!K26 & \" Revenue Requirement.  No input required.\", \"Calculation of \" & '1. Information Sheet'!F38 & \" Revenue Requirement.  No input required.\")","v":"Calculation of 2017 Revenue Requirement.  No input required."}]
[]
[null,null,{"$f":"'4. Growth Factor - NUM_CALC1'!C15","v":"2017 Test Year Distribution Revenues"}]
["Rate Class",null,"Billed Customers or Connections","Billed kWh","Billed kW\n(if applicable)",null,"Monthly Service Charge","Distribution Volumetric Rate kWh","Distribution Volumetric Rate kW",null,"Service Charge Revenue","Distribution Volumetric Rate Revenue \nkWh","Distribution Volumetric Rate Revenue \nkW","Revenue Requirement from Rates",null,"Service Charge % Revenue","Distribution Volumetric Rate % Revenue \nkWh","Distribution Volumetric Rate % Revenue \nkW","Total % Revenue"]
[null,null,"A","B","C",null,"D","E","F",null,"G = A * D *12","H = B * E","I = C * F","J = G + H + I",null,"K = G / J","L = H / J","M = I / J","N = J / R"]
["RESIDENTIAL",null,142509,1068671798,0,null,20.11,8.2000000000000007E-3,0,null,{"$f":"G17*C17*12","v":34390271.879999995},{"$f":"H17*D17","v":8763108.7436000016},0,{"$f":"SUM(K17,L17,M17)","v":43153380.623599999},null,{"$f":"IF(ISERROR(K17/N17),0,ROUND(K17/N17,3))","v":0.79700000000000004},{"$f":"IF(ISERROR(L17/N17),0,ROUND(L17/N17,3))","v":0.20300000000000001},{"$f":"IF(ISERROR(M17/N17),0,ROUND(M17/N17,3))","v":0},{"$f":"N17/N26","v":0.62529407995073727}]
["GENERAL SERVICE LESS THAN 50 KW",null,12999,371911863,0,null,32.879999999999995,1.09E-2,0,null,5128885.4399999995,{"$f":"H18*D18","v":4053839.3067000001},0,9182724.7467,null,0.55900000000000005,0.441,0,{"$f":"N18/N26","v":0.133058020923359}]
["GENERAL SERVICE 50 TO 4,999 KW",null,1611,1486650046.6505947,3778018.43830118,null,162.32999999999998,0,2.7963,null,3138163.5599999996,0,{"$f":"I19*E19","v":10564472.959021591},13702636.519021589,null,0.22900000000000001,0,0.77100000000000002,{"$f":"N19/N26","v":0.19855170953571033}]
["GENERAL SERVICE 50 TO 4,999 KW (COGENERATION)",null,4,34191555,65844,null,2650,0,4.6482000000000001,null,127200,0,306056.0808,433256.0808,null,0.29399999999999998,0,0.70599999999999996,{"$f":"N20/N26","v":6.2778966215856543E-3}]
["STANDBY POWER",null,0,0,154800,null,0,0,3.2101000000000002,null,0,0,496923.48000000004,496923.48000000004,null,0,0,1,{"$f":"N21/N26","v":7.2004395887952342E-3}]
["LARGE USE",null,1,82923505,159628,null,21350,0,2.3178000000000001,null,256200,0,369985.77840000001,626185.77839999995,null,0.40899999999999997,0,0.59099999999999997,{"$f":"N22/N26","v":9.0734550694443316E-3}]
["STREET LIGHTING",null,35912,19502488,54607,null,1.71,0,8.8278999999999996,null,736914.24,0,482065.13529999997,1218979.3753,null,0.60499999999999998,0,0.39500000000000002,{"$f":"N23/N26","v":1.766305619495984E-2}]
["SENTINEL LIGHTING",null,599,706221,1907,null,3.7699999999999996,0,12.4297,null,27098.759999999995,0,23703.437900000001,50802.197899999999,null,0.53300000000000003,0,0.46700000000000003,{"$f":"N24/N26","v":7.3612572494455297E-4}]
["UNMETERED SCATTERED LOAD",null,1537,5464035,0,null,2.25,1.95E-2,0,null,41499,{"$f":"H25*D25","v":106548.6825},0,148047.6825,null,0.28000000000000003,0.72,0,{"$f":"N25/N26","v":2.1452163904639547E-3}]
["Total",null,{"$f":"SUM(C17:C25)","v":195172},{"$f":"SUM(D17:D25)","v":3070021511.6505947},{"$f":"SUM(E17:E25)","v":4214804.4383011796},null,null,null,null,null,{"$f":"SUM(K17:K25)","v":43846232.879999995},{"$f":"SUM(L17:L25)","v":12923496.732800001},{"$f":"SUM(M17:M25)","v":12243206.87142159},{"$f":"SUM(N17:N25)","v":69012936.484221578},null,null,null,null,{"$f":"SUM(S17:S25)","v":1.0000000000000002}]

{"sheet":"9. STS - Billing Det & Rate HID","index":7,"n_rows":25,"n_cols":9,"rows_kept":25,"cut":false,"hidden":true,"merged":[]}
[]
[]
[]
[]
[]
[]
[]
[]
[]
[]
["Shared Tax Savings"]
[{"$f":"\"Enter your \" & '1. Information Sheet'!F36 & \" Board-Approved Billing Determinents into columns B, C and D.\"","v":"Enter your EB-2012-0146 Board-Approved Billing Determinents into columns B, C and D."}]
[]
[]
[]
["Rate Class","Units","Re-based \nBilled Customers or Connections","Re-based Billed kWh","Re-based Billed kW (if applicable)",null,{"$f":" '1. Information Sheet'!F36 &\" \nBase Monthly \nService Charge\"","v":"EB-2012-0146 \nBase Monthly \nService Charge"},{"$f":" '1. Information Sheet'!F36 &\" \nBase Distribution Volumetric Rate kWh\"","v":"EB-2012-0146 \nBase Distribution Volumetric Rate kWh"},{"$f":" '1. Information Sheet'!F36 &\" \nBase Distribution Volumetric Rate kW\"","v":"EB-2012-0146 \nBase Distribution Volumetric Rate kW"}]
["RESIDENTIAL","$/kWh",142509,1068671798,0,null,20.11,8.2000000000000007E-3,0]
["GENERAL SERVICE LESS THAN 50 KW","$/kWh",12999,371911863,0,null,32.879999999999995,1.09E-2,0]
["GENERAL SERVICE 50 TO 4,999 KW","$/kW",1611,1486650046.6505947,3778018.43830118,null,162.32999999999998,0,2.7963]
["GENERAL SERVICE 50 TO 4,999 KW (COGENERATION)","$/kW",4,34191555,65844,null,2650,0,4.6482000000000001]
["STANDBY POWER","$/kW",0,0,154800,null,0,0,3.2101000000000002]
["LARGE USE","$/kW",1,82923505,159628,null,21350,0,2.3178000000000001]
["STREET LIGHTING","$/kW",35912,19502488,54607,null,1.71,0,8.8278999999999996]
["SENTINEL LIGHTING","$/kW",599,706221,1907,null,3.7699999999999996,0,12.4297]
["UNMETERED SCATTERED LOAD","$/kWh",1537,5464035,0,null,2.25,1.95E-2,0]

{"sheet":"6. Rev_Requ_Check","index":8,"n_rows":69,"n_cols":6,"rows_kept":69,"cut":false,"hidden":false,"merged":[[7,2,7,5]]}
[]
[]
[]
[]
[]
[]
[]
["Applicants Rate Base",null,{"$f":"'4. Growth Factor - NUM_CALC1'!C15","v":"2017 Test Year Distribution Revenues"}]
["Average Net Fixed Assets"]
["Gross Fixed Assets - Re-based Opening",null,451867413,"A"]
["Add: CWIP Re-based Opening",null,null,"B"]
["Re-based Capital Additions",null,28092000,"C"]
["Re-based Capital Disposals",null,null,"D"]
["Re-based Capital Retirements",null,-10483097,"E"]
["Deduct: CWIP Re-based Closing",null,-157307,"F"]
["Gross Fixed Assets - Re-based Closing",null,{"$f":"SUM(C10:C15)","v":469319009},"G"]
["Average Gross Fixed Assets",null,null,null,{"$f":"(C10+C16)/2","v":460593211},"H = ( A + G ) / 2"]
[]
["Accumulated Depreciation - Re-based Opening",null,193199445,"I"]
["Re-based Depreciation Expense",null,17984944,"J"]
["Re-based Disposals",null,null,"K"]
["Re-based Retirements",null,-10734680,"L"]
["Accumulated Depreciation - Re-based Closing",null,{"$f":"SUM(C19:C22)","v":200449709},"M"]
["Average Accumulated Depreciation",null,null,null,{"$f":"SUM(C19,C23)/2","v":196824577},"N =  ( I + M ) / 2"]
[]
["Average Net Fixed Assets ",null,null,null,{"$f":"E17-E24","v":263768634},"O = H - N"]
[]
["Working Capital Allowance"]
["Working Capital Allowance Base",null,438036563,"P"]
["Working Capital Allowance Rate",null,8.6699999999999999E-2,"Q"]
["Working Capital Allowance",null,null,null,{"$f":"C29*C30","v":37977770.012099996},"R = P * Q"]
[]
["Rate Base",null,null,null,{"$f":"SUM(E26,E31)","v":301746404.01209998},"S =  O + R"]
[]
["Return on Rate Base"]
["Deemed ShortTerm Debt %",null,0.04,"T",{"$f":"E33*C36","v":12069856.160483999},"W = S * T"]
["Deemed Long Term Debt %",null,0.56000000000000005,"U",{"$f":"E33*C37","v":168977986.24677601},"X = S * U"]
["Deemed Equity %",null,{"$f":"1-C36-C37","v":0.39999999999999991},"V",{"$f":"E33*C38","v":120698561.60483997},"Y = S * V"]
[]
["Short Term Interest",null,1.6500000000000001E-2,"Z",{"$f":"E36*C40","v":199152.62664798601},"AC = W * Z"]
["Long Term Interest",null,2.7117413941174992E-2,"AA",{"$f":"E37*C41","v":4582246},"AD = X * AA"]
["Return on Equity",null,9.1899999999999996E-2,"AB",{"$f":"E38*C42","v":11092197.811484793},"AE = Y * AB"]
["Return on Rate Base",null,null,null,{"$f":"SUM(E40:E42)","v":15873596.43813278},"AF = AC + AD + AE"]
[]
["Distribution Expenses"]
["OM&A Expenses",null,{"$f":"10050600+8188347+5300023+225974+15032056","v":38797000},"AG"]
["Amortization",null,17128312,"AH"]
["Ontario Capital Tax",null,null,"AI"]
["Grossed Up PILs",null,1377498,"AJ"]
["Low Voltage",null,null,"AK"]
["Transformer Allowance",null,791884,"AL"]
[null,null,null,"AM"]
[null,null,null,"AN"]
[null,null,null,"AO"]
[null,null,null,null,{"$f":"SUM(C46:C54)","v":58094694},"AP = SUM ( AG : AO )"]
["Revenue Offsets"]
["Specific Service Charges",null,-1689119,"AQ"]
["Late Payment Charges",null,-1967000,"AR"]
["Other Distribution Income",null,-550900,"AS"]
["Other Income and Deductions",null,-757145,"AT",{"$f":"SUM(C57:C60)","v":-4964164},"AU = SUM ( AQ : AT )"]
[]
["Revenue Requirement from Distribution Rates",null,null,null,{"$f":"SUM(E60,E55,E43)","v":69004126.438132778},"AV = AF + AP + AU"]
[]
["Rate Classes Revenue"]
["Rate Classes Revenue - Total  (Sheet 5)",null,null,null,69012936.484221578,"AW"]
[]
["Difference",null,null,null,{"$f":"E62-E65","v":-8810.0460887998343},"AZ = AV - AW"]
[]
["Difference (Percentage - should be less than 1%)",null,null,null,{"$f":"IF(ISERROR(E67/E65),0,E67/E65)","v":-1.2765789339820477E-4},"BA = AZ / AW"]

{"sheet":"7. Growth Factor - DEN_CALC","index":9,"n_rows":26,"n_cols":19,"rows_kept":26,"cut":false,"hidden":false,"merged":[[13,2,13,4],[13,6,13,8]]}
[]
[]
[]
[]
[]
[]
[]
[]
[]
[]
[]
[{"$f":"\"Input the billing determinants associated with \"&'1. Information Sheet'!F14&\"'s \"&'1. Information Sheet'!F49&\".  This sheet calculates the DENOMINATOR portion of the growth factor calculation.\"","v":"Input the billing determinants associated with London Hydro Inc.'s 2015 Actual Distribution Revenues.  This sheet calculates the DENOMINATOR portion of the growth factor calculation."}]
["Pseudo Revenue Requirement Calculation."]
[null,null,{"$f":"'1. Information Sheet'!F49","v":"2015 Actual Distribution Revenues"},null,null,null,{"$f":"'1. Information Sheet'!F38 & \" Base Rates\"","v":"2015 Base Rates"}]
["Rate Class",null,"Billed Customers or Connections","Billed kWh","Billed kW",null,"Monthly Service Charge","Distribution Volumetric Rate kWh","Distribution Volumetric Rate kW",null,"Service Charge Revenue","Distribution Volumetric Rate Revenue \nkWh","Distribution Volumetric Rate Revenue \nkW","Total Revenue By Rate Class",null,"Service Charge % Revenue","Distribution Volumetric Rate % Revenue \nkWh","Distribution Volumetric Rate % Revenue \nkW","Total % Revenue"]
[null,null,"A","B","C",null,"D","E","F",null,"G = A * D *12","H = B * E","I = C * F","J = G + H + I",null,"K = G / Jtotal","L = H / Jtotal","M = I / Jtotal","N = J / Jtotal"]
["RESIDENTIAL",null,139861,1084665542.4000001,0,null,20.11,8.2000000000000007E-3,0,null,{"$f":"G17*C17*12","v":33751256.519999996},{"$f":"H17*D17","v":8894257.4476800021},{"$f":"I17*E17","v":0},{"$f":"SUM(K17,L17,M17)","v":42645513.96768},null,{"$f":"IF(ISERROR(K17/N26),0,ROUND(K17/N26,3))","v":0.48599999999999999},{"$f":"IF(ISERROR(L17/N26),0,ROUND(L17/N26,3))","v":0.128},{"$f":"IF(ISERROR(M17/N26),0,ROUND(M17/N26,3))","v":0},{"$f":"N17/N26","v":0.61457198562057558}]
["GENERAL SERVICE LESS THAN 50 KW",null,12485,399647917,0,null,32.879999999999995,1.09E-2,0,null,4926081.5999999996,4356162.2953000003,0,9282243.8953000009,null,{"$f":"IF(ISERROR(K18/N26),0,ROUND(K18/N26,3))","v":7.0999999999999994E-2},{"$f":"IF(ISERROR(L18/N26),0,ROUND(L18/N26,3))","v":6.3E-2},{"$f":"IF(ISERROR(M18/N26),0,ROUND(M18/N26,3))","v":0},{"$f":"N18/N26","v":0.13376804570985756}]
["GENERAL SERVICE 50 TO 4,999 KW",null,1594,1465515148.48,3725595.34,null,162.32999999999998,0,2.7963,null,3105048.2399999993,0,10417882.249242,13522930.489241999,null,{"$f":"IF(ISERROR(K19/N26),0,ROUND(K19/N26,3))","v":4.4999999999999998E-2},{"$f":"IF(ISERROR(L19/N26),0,ROUND(L19/N26,3))","v":0},{"$f":"IF(ISERROR(M19/N26),0,ROUND(M19/N26,3))","v":0.15},{"$f":"N19/N26","v":0.19488132441037154}]
["GENERAL SERVICE 50 TO 4,999 KW (COGENERATION)",null,4,38831480.539999999,75191.731958650635,null,2650,0,4.6482000000000001,null,127200,0,349506.20849019988,476706.20849019988,null,{"$f":"IF(ISERROR(K20/N26),0,ROUND(K20/N26,3))","v":2E-3},{"$f":"IF(ISERROR(L20/N26),0,ROUND(L20/N26,3))","v":0},{"$f":"IF(ISERROR(M20/N26),0,ROUND(M20/N26,3))","v":5.0000000000000001E-3},{"$f":"N20/N26","v":6.8698968274016657E-3}]
["STANDBY POWER",null,0,0,154800,null,0,0,3.2101000000000002,null,0,0,496923.48000000004,496923.48000000004,null,{"$f":"IF(ISERROR(K21/N26),0,ROUND(K21/N26,3))","v":0},{"$f":"IF(ISERROR(L21/N26),0,ROUND(L21/N26,3))","v":0},{"$f":"IF(ISERROR(M21/N26),0,ROUND(M21/N26,3))","v":7.0000000000000001E-3},{"$f":"N21/N26","v":7.161251475044669E-3}]
["LARGE USE",null,3,137445055,284637,null,21350,0,2.3178000000000001,null,768600,0,659731.63860000006,1428331.6386000002,null,{"$f":"IF(ISERROR(K22/N26),0,ROUND(K22/N26,3))","v":1.0999999999999999E-2},{"$f":"IF(ISERROR(L22/N26),0,ROUND(L22/N26,3))","v":0},{"$f":"IF(ISERROR(M22/N26),0,ROUND(M22/N26,3))","v":0.01},{"$f":"N22/N26","v":2.0583937900815672E-2}]
["STREET LIGHTING",null,35359,24640359,69126,null,1.71,0,8.8278999999999996,null,725566.67999999993,0,610237.41539999994,1335804.0954,null,{"$f":"IF(ISERROR(K23/N26),0,ROUND(K23/N26,3))","v":0.01},{"$f":"IF(ISERROR(L23/N26),0,ROUND(L23/N26,3))","v":0},{"$f":"IF(ISERROR(M23/N26),0,ROUND(M23/N26,3))","v":8.9999999999999993E-3},{"$f":"N23/N26","v":1.9250507238164634E-2}]
["SENTINEL LIGHTING",null,627,738970.2,2010,null,3.7699999999999996,0,12.4297,null,28365.479999999996,0,24983.697,53349.176999999996,null,{"$f":"IF(ISERROR(K24/N26),0,ROUND(K24/N26,3))","v":0},{"$f":"IF(ISERROR(L24/N26),0,ROUND(L24/N26,3))","v":0},{"$f":"IF(ISERROR(M24/N26),0,ROUND(M24/N26,3))","v":0},{"$f":"N24/N26","v":7.688243519579092E-4}]
["UNMETERED SCATTERED LOAD",null,1522,5522827.9000000004,0,null,2.25,1.95E-2,0,null,41094,107695.14405,0,148789.14405,null,{"$f":"IF(ISERROR(K25/N26),0,ROUND(K25/N26,3))","v":1E-3},{"$f":"IF(ISERROR(L25/N26),0,ROUND(L25/N26,3))","v":2E-3},{"$f":"IF(ISERROR(M25/N26),0,ROUND(M25/N26,3))","v":0},{"$f":"N25/N26","v":2.1442264658105832E-3}]
["Total",null,{"$f":"SUM(C17:C25)","v":191455},{"$f":"SUM(D17:D25)","v":3157007300.52},{"$f":"SUM(E17:E25)","v":4311360.0719586499},null,null,null,null,null,{"$f":"SUM(K17:K25)","v":43473212.519999996},{"$f":"SUM(L17:L25)","v":13358114.887030004},{"$f":"SUM(M17:M25)","v":12559264.688732201},{"$f":"SUM(N17:N25)","v":69390592.095762208},null,null,null,null,{"$f":"SUM(S17:S25)","v":0.99999999999999989}]

{"sheet":"7. Load Actual - HID","index":10,"n_rows":25,"n_cols":19,"rows_kept":25,"cut":false,"hidden":true,"merged":[]}
[]
[]
[]
[]
[]
[]
[]
[]
[]
[]
[]
[{"$f":"\"Calculation of Most Recent Revenue.  Enter values into green shaded cells (\" & '1. Information Sheet'!#REF! & \")\"","v":{"$error":"#REF!"}}]
[]
[]
["Rate Class",null,"Billed Customers or Connections","Billed kWh","Billed kW",null,"Base Service Charge","Base Distribution Volumetric Rate kWh","Base Distribution Volumetric Rate kW",null,"Service Charge Revenue","Distribution Volumetric Rate Revenue \nkWh","Distribution Volumetric Rate Revenue \nkW","Total Revenue By Rate Class",null,"Service Charge % Revenue","Distribution Volumetric Rate % Revenue \nkWh","Distribution Volumetric Rate % Revenue \nkW","Total % Revenue"]
[null,null,"A","B","C",null,"D","E","F",null,"G = A * D *12","H = B * E","I = C * F","J = G + H + I",null,"K = G / J","L = H / J","M = I / J","N = J / R"]
["RESIDENTIAL",null,139861,1084665542.4000001,0]
["GENERAL SERVICE LESS THAN 50 KW",null,12485,399647917,0]
["GENERAL SERVICE 50 TO 4,999 KW",null,1594,1465515148.48,3725595.34]
["GENERAL SERVICE 50 TO 4,999 KW (COGENERATION)",null,4,38831480.539999999,75191.731958650635]
["STANDBY POWER",null,0,0,154800]
["LARGE USE",null,3,137445055,284637]
["STREET LIGHTING",null,35359,24640359,69126]
["SENTINEL LIGHTING",null,627,738970.2,2010]
["UNMETERED SCATTERED LOAD",null,1522,5522827.9000000004,0]

{"sheet":"8. Revenue Proportions","index":11,"n_rows":26,"n_cols":19,"rows_kept":26,"cut":false,"hidden":false,"merged":[[12,0,12,6],[13,6,13,8],[13,2,13,4]]}
[]
[]
[]
[]
[]
[]
[]
[]
[]
[]
[]
["Current Revenue from Rates"]
["This sheet is used to determine the applicant's most current allocation of revenues (after the most recent revenue to cost ratio adjustment, if applicable)  to appropriately allocate the incremental revenue requirement to the classes.\n"]
[null,null,{"$f":"IF('1. Information Sheet'!F26=\"COS\", \"Proposed Base Rates in Current CoS Application\", \"Most Recent Board-Approved Base Rates\")","v":"Proposed Base Rates in Current CoS Application"},null,null,null,{"$f":"'4. Growth Factor - NUM_CALC1'!C15","v":"2017 Test Year Distribution Revenues"}]
["Rate Class",null,"Monthly Service Charge","Distribution Volumetric Rate kWh","Distribution Volumetric Rate kW",null,"Re-based Billed Customers or Connections","Re-based Billed kWh","Re-based Billed kW",null,"Current Base Service Charge Revenue","Current Base Distribution Volumetric Rate kWh Revenue","Current Base Distribution Volumetric Rate kW Revenue","Total Current Base Revenue",null,"Service Charge % Total Revenue","Distribution Volumetric Rate % Total Revenue ","Distribution Volumetric Rate % Total Revenue ","Total % Revenue"]
[null,null,"A","B","C",null,"D","E","F",null,"G = A * D *12","H = B * E","I = C * F","J = G + H + I",null,"L = G / Jtotal","M = H / Jtotal","N = I / Jtotal","O = J / Jtotal"]
["RESIDENTIAL",null,13.12,1.55E-2,0,null,142509,1068671798,0,null,{"$f":"G17*C17*12","v":22436616.959999997},{"$f":"H17*D17","v":16564412.868999999},{"$f":"I17*E17","v":0},{"$f":"SUM(K17,L17,M17)","v":39001029.828999996},null,{"$f":"IF(ISERROR(K17/N26),0,K17/N26)","v":0.35880165169926731},{"$f":"IF(ISERROR(L17/N26),0,L17/N26)","v":0.2648946009740053},{"$f":"IF(ISERROR(M17/N26),0,M17/N26)","v":0},{"$f":"N17/N26","v":0.62369625267327267}]
["GENERAL SERVICE LESS THAN 50 KW",null,30.7,9.9000000000000008E-3,0,null,12999,371911863,0,null,4788831.5999999996,3681927.4437000002,0,8470759.0437000003,null,{"$f":"IF(ISERROR(K18/N26),0,K18/N26)","v":7.6581986083415543E-2},{"$f":"IF(ISERROR(L18/N26),0,L18/N26)","v":5.8880608007510479E-2},{"$f":"IF(ISERROR(M18/N26),0,M18/N26)","v":0},{"$f":"N18/N26","v":0.13546259409092604}]
["GENERAL SERVICE 50 TO 4,999 KW",null,150,0,2.5038,null,1611,1486650046.6505947,3778018.43830118,null,2899800,0,9459402.5658184942,12359202.565818494,null,{"$f":"IF(ISERROR(K19/N26),0,K19/N26)","v":4.637299069875174E-2},{"$f":"IF(ISERROR(L19/N26),0,L19/N26)","v":0},{"$f":"IF(ISERROR(M19/N26),0,M19/N26)","v":0.15127277301898384},{"$f":"N19/N26","v":0.1976457637177356}]
["GENERAL SERVICE 50 TO 4,999 KW (COGENERATION)",null,2403.08,0,4.1978,null,4,34191555,65844,null,115347.84,0,276399.94319999998,391747.78319999995,null,{"$f":"IF(ISERROR(K20/N26),0,K20/N26)","v":1.8446183569353417E-3},{"$f":"IF(ISERROR(L20/N26),0,L20/N26)","v":0},{"$f":"IF(ISERROR(M20/N26),0,M20/N26)","v":4.4201296624419295E-3},{"$f":"N20/N26","v":6.2647480193772712E-3}]
["STANDBY POWER",null,0,0,2.9026000000000001,null,0,0,154800,null,0,0,449322.48000000004,449322.48000000004,null,{"$f":"IF(ISERROR(K21/N26),0,K21/N26)","v":0},{"$f":"IF(ISERROR(L21/N26),0,L21/N26)","v":0},{"$f":"IF(ISERROR(M21/N26),0,M21/N26)","v":7.185470441333908E-3},{"$f":"N21/N26","v":7.185470441333908E-3}]
["LARGE USE",null,19314.830000000002,0,2.0949,null,1,82923505,159628,null,231777.96000000002,0,334404.6972,566182.65720000002,null,{"$f":"IF(ISERROR(K22/N26),0,K22/N26)","v":3.7065443076266134E-3},{"$f":"IF(ISERROR(L22/N26),0,L22/N26)","v":0},{"$f":"IF(ISERROR(M22/N26),0,M22/N26)","v":5.347729468540759E-3},{"$f":"N22/N26","v":9.0542737761673715E-3}]
["STREET LIGHTING",null,1.57,0,8.1064000000000007,null,35912,19502488,54607,null,676582.08000000007,0,442666.18480000005,1119248.2648,null,{"$f":"IF(ISERROR(K23/N26),0,K23/N26)","v":1.0819758087724018E-2},{"$f":"IF(ISERROR(L23/N26),0,L23/N26)","v":0},{"$f":"IF(ISERROR(M23/N26),0,M23/N26)","v":7.0790243707780955E-3},{"$f":"N23/N26","v":1.7898782458502113E-2}]
["SENTINEL LIGHTING",null,3.31,0,10.9336,null,599,706221,1907,null,23792.28,0,20850.375199999999,44642.655199999994,null,{"$f":"IF(ISERROR(K24/N26),0,K24/N26)","v":3.80481129437236E-4},{"$f":"IF(ISERROR(L24/N26),0,L24/N26)","v":0},{"$f":"IF(ISERROR(M24/N26),0,M24/N26)","v":3.3343480764710801E-4},{"$f":"N24/N26","v":7.1391593708434401E-4}]
["UNMETERED SCATTERED LOAD",null,1.98,1.7100000000000001E-2,0,null,1537,5464035,0,null,36519.119999999995,93434.998500000002,0,129954.1185,null,{"$f":"IF(ISERROR(K25/N26),0,K25/N26)","v":5.840060735521755E-4},{"$f":"IF(ISERROR(L25/N26),0,L25/N26)","v":1.4941928120485492E-3},{"$f":"IF(ISERROR(M25/N26),0,M25/N26)","v":0},{"$f":"N25/N26","v":2.0781988856007245E-3}]
["Total",null,null,null,null,null,null,null,null,null,{"$f":"SUM(K17:K25)","v":31209267.84},{"$f":"SUM(L17:L25)","v":20339775.3112},{"$f":"SUM(M17:M25)","v":10983046.246218495},{"$f":"SUM(N17:N25)","v":62532089.397418492},null,null,null,null,{"$f":"SUM(S17:S25)","v":1}]

{"sheet":"8. Current Revenue - HID","index":12,"n_rows":25,"n_cols":19,"rows_kept":25,"cut":false,"hidden":true,"merged":[]}
[]
[]
[]
[]
[]
[]
[]
[]
[]
[]
[]
[{"$f":"\"Calculation of Most Recent Revenue.  Enter values into green shaded cells (\" & '1. Information Sheet'!#REF! & \")\"","v":{"$error":"#REF!"}}]
[]
[]
["Rate Class",null,"Current Base Service Charge","Current Base Distribution Volumetric Rate kWh","Current Base Distribution Volumetric Rate kW",null,"Re-based Billed Customers or Connections","Re-based Billed kWh","Re-based Billed kW",null,"Current Base Service Charge Revenue","Current Base Distribution Volumetric Rate kWh Revenue","Current Base Distribution Volumetric Rate kW Revenue","Total Current Base Revenue",null,"Service Charge % Total Revenue","Distribution Volumetric Rate % Total Revenue ","Distribution Volumetric Rate % Total Revenue ","Total % Revenue"]
[null,null,"A","B","C",null,"D","E","F",null,"G = A * D *12","H = B * E","I = C * F","J = G + H + I",null,"K = G / J","L = H / J","M = I / J","N = J / R"]
["RESIDENTIAL",null,13.12,1.55E-2,0]
["GENERAL SERVICE LESS THAN 50 KW",null,30.7,9.9000000000000008E-3,0]
["GENERAL SERVICE 50 TO 4,999 KW",null,150,0,2.5038]
["GENERAL SERVICE 50 TO 4,999 KW (COGENERATION)",null,2403.08,0,4.1978]
["STANDBY POWER",null,0,0,2.9026000000000001]
["LARGE USE",null,19314.830000000002,0,2.0949]
["STREET LIGHTING",null,1.57,0,8.1064000000000007]
["SENTINEL LIGHTING",null,3.31,0,10.9336]
["UNMETERED SCATTERED LOAD",null,1.98,1.7100000000000001E-2,0]

{"sheet":"9. Threshold Test","index":13,"n_rows":66,"n_cols":5,"rows_kept":66,"cut":false,"hidden":false,"merged":[[8,2,8,4],[65,2,65,5]]}
[]
[]
[]
[]
[]
[]
[]
["No Input Required."]
[null,null,{"$f":"IF('1. Information Sheet'!F26 = \"COS\", \"Preliminary Threshold Calculation\", \"Final Threshold Calculation\")","v":"Preliminary Threshold Calculation"}]
[]
[]
[]
[null,null,"Year",null,2016]
[null,null,"Year in which Applicant is applying",null,{"$f":"IF('1. Information Sheet'!F26=\"CoS\", \"COS\",'1. Information Sheet'!F28)","v":"COS"}]
[]
[null,null,"Price Cap Index",null,{"$f":"'1. Information Sheet'!F40-0.3%","v":1.8000000000000002E-2}]
[null,null,"Growth Factor Calculation"]
[null,null,{"$f":"'1. Information Sheet'!F48","v":"2017 Test Year Distribution Revenues"},null,69012936.484221578]
[null,null,{"$f":"'1. Information Sheet'!F49","v":"2015 Actual Distribution Revenues"},null,69390592.095762208]
[null,null,"Growth Factor",null,{"$f":"IF(ISERROR(E18/E19-1),0,(E18/E19-1)/('1. Information Sheet'!I48-'1. Information Sheet'!I49))","v":-2.7212306462196523E-3}]
[null,null,"Dead Band",null,0.1]
[null,null,"Average Net Fixed Assets"]
[null,null,"Gross Fixed Assets Opening",null,{"$f":"'6. Rev_Requ_Check'!C10","v":451867413}]
[null,null,"Add: CWIP Opening",null,{"$f":"'6. Rev_Requ_Check'!C11","v":0}]
[null,null,"Capital Additions",null,{"$f":"'6. Rev_Requ_Check'!C12","v":28092000}]
[null,null,"Capital Disposals",null,{"$f":"'6. Rev_Requ_Check'!C13","v":0}]
[null,null,"Capital Retirements",null,{"$f":"'6. Rev_Requ_Check'!C14","v":-10483097}]
[null,null,"Deduct: CWIP Closing",null,{"$f":"'6. Rev_Requ_Check'!C15","v":-157307}]
[null,null,"Gross Fixed Assets - Closing",null,{"$f":"'6. Rev_Requ_Check'!C16","v":469319009}]
[]
[null,null,"Average Gross Fixed Assets",null,{"$f":"(E23+E29)/2","v":460593211}]
[]
[null,null,"Accumulated Depreciation - Opening",null,{"$f":"'6. Rev_Requ_Check'!C19","v":193199445}]
[null,null,"Depreciation Expense",null,{"$f":"'6. Rev_Requ_Check'!C20","v":17984944}]
[null,null,"Disposals",null,{"$f":"'6. Rev_Requ_Check'!C21","v":0}]
[null,null,"Retirements",null,{"$f":"'6. Rev_Requ_Check'!C22","v":-10734680}]
[null,null,"Accumulated Depreciation - Closing",null,{"$f":"'6. Rev_Requ_Check'!C23","v":200449709}]
[]
[null,null,"Average Accumulated Depreciation",null,{"$f":"(E33+E37)/2","v":196824577}]
[]
[null,null,"Average Net Fixed Assets ",null,{"$f":"E31-E39","v":263768634}]
[]
[]
[null,null,"Working Capital Allowance"]
[null,null,"Working Capital Allowance Base",null,{"$f":"'6. Rev_Requ_Check'!C29","v":438036563}]
[null,null,"Working Capital Allowance Rate",null,{"$f":"'6. Rev_Requ_Check'!C30","v":8.6699999999999999E-2}]
[null,null,"Working Capital Allowance",null,{"$f":"E45*E46","v":37977770.012099996}]
[]
[null,null,"Rate Base",null,{"$f":"E41+E47","v":301746404.01209998}]
[]
[null,null,"Depreciation",null,{"$f":"E34","v":17984944}]
[]
[null,null,"Threshold Value (varies by Price Cap IR Year subsequent to CoS rebasing)"]
[null,null,{"$f":"CONCATENATE(\"    Price Cap IR Year \",'1. Information Sheet'!K$26+1)","v":"    Price Cap IR Year 2018"},null,{"$f":"IF(ISERROR(1+((RB/d)*(g+PCI*(1+g)))*((1+g)*(1+PCI))^(1-1) + 10%), 0, 1+((RB/d)*(g+PCI*(1+g)))*((1+g)*(1+PCI))^(1-1) + 10%)","v":1.3555211471393951}]
[null,null,{"$f":"CONCATENATE(\"    Price Cap IR Year \",'1. Information Sheet'!K$26+2)","v":"    Price Cap IR Year 2019"},null,{"$f":"IF(ISERROR(1+((RB/d)*(g+PCI*(1+g)))*((1+g)*(1+PCI))^(2-1) + 10%), 0, 1+((RB/d)*(g+PCI*(1+g)))*((1+g)*(1+PCI))^(2-1) + 10%)","v":1.3594126798359771}]
[null,null,{"$f":"CONCATENATE(\"    Price Cap IR Year \",'1. Information Sheet'!K$26+3)","v":"    Price Cap IR Year 2020"},null,{"$f":"IF(ISERROR(1+((RB/d)*(g+PCI*(1+g)))*((1+g)*(1+PCI))^(3-1) + 10%), 0, 1+((RB/d)*(g+PCI*(1+g)))*((1+g)*(1+PCI))^(3-1) + 10%)","v":1.3633634797474181}]
[null,null,{"$f":"CONCATENATE(\"    Price Cap IR Year \",'1. Information Sheet'!K$26+4)","v":"    Price Cap IR Year 2021"},null,{"$f":"IF(ISERROR(1+((RB/d)*(g+PCI*(1+g)))*((1+g)*(1+PCI))^(4-1) + 10%), 0, 1+((RB/d)*(g+PCI*(1+g)))*((1+g)*(1+PCI))^(4-1) + 10%)","v":1.3673744495007885}]
[]
[null,null,"Threshold CAPEX"]
[null,null,{"$f":"C54","v":"    Price Cap IR Year 2018"},null,{"$f":"IF(ISERROR(d*E54), \"\", d*E54)","v":24378971.922117781}]
[null,null,{"$f":"C55","v":"    Price Cap IR Year 2019"},null,{"$f":"IF(ISERROR(d*E55), \"\", d*E55)","v":24448960.919739977}]
[null,null,"    Price Cap IR Year 2020",null,{"$f":"IF(ISERROR(d*E56), \"\", d*E56)","v":24520015.83490245}]
[null,null,"    Price Cap IR Year 2021",null,{"$f":"IF(ISERROR(d*E57), \"\", d*E57)","v":24592152.901302509}]
[]
[]
[null,"Note 1:","The growth factor g is annualized, depending on the number of years between the numerator and denominator for the calculation. Typically, for ACM review in a cost of service and in the fourth year of Price Cap IR, the ratio is divided by 2 to annualize it. No division is normally required for the first three years under Price Cap IR."]

{"sheet":"24. hidden","index":14,"n_rows":1,"n_cols":3,"rows_kept":1,"cut":false,"hidden":true,"merged":[]}
["Rate Class","MFC Adjustment from R/C Model","DVR Adjustment from R/C Model"]

{"sheet":"lists","index":15,"n_rows":214,"n_cols":55,"rows_kept":214,"cut":false,"hidden":true,"merged":[[12,51,12,52],[1,51,1,52],[0,51,0,52],[11,51,11,52],[10,51,10,52],[9,51,9,52],[8,51,8,52],[7,51,7,52],[5,51,5,52],[4,51,4,52],[3,51,3,52],[2,51,2,52],[6,51,6,52],[13,51,13,52],[14,51,14,52],[15,51,15,52],[16,51,16,52],[17,51,17,52]]}
["DISTRIBUTED GENERATION [DGEN]","Embedded Distributor",{"$f":"COUNTA(B1:B17)","v":4},null,null,null,null,null,"A Standby Service Charge will be applied for a month where standby power is not provided. The applicable rate is the approved Distribution Volumetric Rate of the applicable service class and is applied to gross metered demand or contracted amount, whichever is greater. A monthly administration charge of $200, for simple metering arrangements, or $500, for complex metering arrangements, will also be applied.",null,null,"Loss Factors",null,"Units","Units1","Units2",null,null,null,null,null,null,null,null,null,"Account History","Account set up charge/change of occupancy charge (plus credit agency costs if applicable)","Total Loss Factor – Embedded Distributor – Hydro One Networks Inc.",null,null,null,null,null,null,null,null,null,"Algoma Power Inc.","Algoma Power Inc.",null,"DISTRIBUTED GENERATION [DGEN]","kW",null,null,null,"Sub-Total:  Delivery (Distribution and Retail Transmission)"]
["EMBEDDED DISTRIBUTOR","General Service 3,000 to 4,999 kW",null,null,null,null,null,null,"Distribution Volumetric Rate",null,null,"Total Loss Factor – Primary Metered Customer",null,"$","$/kWh","$",null,null,null,null,null,null,null,null,null,"Account set up charge/change of occupancy charge","Administrative Billing Charge","Total Loss Factor – Primary Metered Customer",null,null,null,null,null,null,null,null,null,"Atikokan Hydro Inc.","Atikokan Hydro Inc.",null,"EMBEDDED DISTRIBUTOR","kW",null,null,null,"Wholesale Market Service Rate ",null,null,{"$f":"AU2*AV2","v":0},{"$f":"AU2","v":0},0,{"$f":"AX2*AY2","v":0},null,{"$f":"AZ2-AW2","v":0},{"$f":"BB2/AW2","v":{"$error":"#DIV/0!"}}]
["EMBEDDED DISTRIBUTOR","General Service 1,000 to 4,999 kW",null,null,null,null,null,null,"Distribution Volumetric Rate - $/kW of contracted amount",null,null,"Total Loss Factor – Primary Metered Customer < 5,000 kW",null,"$/kWh","$/kW","%",null,null,null,null,null,null,"MSC",null,null,"Account set up charge/change of occupancy charge (plus credit agency costs if applicable – Residential)","Bell Canada Pole Rentals","Total Loss Factor – Primary Metered Customer < 5,000 kW",null,null,null,null,null,null,null,null,null,"Attawapiskat Power Corporation","Bluewater Power Distribution Corporation",null,"EMBEDDED DISTRIBUTOR","kW",null,null,null,"Rural or Remote Electricity Rate Protection Charge (RRRP)",null,null,{"$f":"AU3*AV3","v":0},0,0,{"$f":"AX3*AY3","v":0},null,{"$f":"AZ3-AW3","v":0},{"$f":"BB3/AW3","v":{"$error":"#DIV/0!"}}]
["FARMS - SINGLE PHASE ENERGY-BILLED [F1]","General Service Equal To Or Greater Than 1,500 kW - Interval Metered",null,null,null,null,null,null,"Distribution Wheeling Service Rate",null,null,"Total Loss Factor – Primary Metered Customer > 5,000 kW",null,"$/kW","$/kVA",null,null,null,null,null,null,null,"SM_Rate_Adder",null,null,"Account set up charge/change of occupancy charge (plus credit agency costs if applicable)","Clearance Pole Attachment charge $/pole/year","Total Loss Factor – Primary Metered Customer > 5,000 kW",null,null,null,null,null,null,null,null,null,"Bluewater Power Distribution Corporation","Brant County Power Inc.",null,"FARMS - SINGLE PHASE ENERGY-BILLED [F1]","kWh",null,null,null,"Standard Supply Service – Administration Charge (if applicable)",null,null,{"$f":"AU4*AV4","v":0},0,0,{"$f":"AX4*AY4","v":0},null,{"$f":"AZ4-AW4","v":0},{"$f":"BB4/AW4","v":{"$error":"#DIV/0!"}}]
["FARMS - THREE PHASE ENERGY-BILLED [F3]",null,null,null,null,null,null,null,"Electricity Rate",null,null,"Total Loss Factor – Secondary Metered Customer",null,"$/kVA",null,null,null,null,null,null,null,null,"MSC_Rate_Rider_",null,null,"Arrears certificate","Collection of account charge – no disconnection","Total Loss Factor – Secondary Metered Customer",null,null,null,null,null,null,null,null,null,"Brant County Power Inc.","Brantford Power Inc.",null,"FARMS - THREE PHASE ENERGY-BILLED [F3]","kWh",null,null,null,"Sub-Total:  Regulatory",null,null,{"$f":"SUM(AW2:AW4)","v":0},null,null,{"$f":"SUM(AZ2:BA4)","v":0},null,{"$f":"AZ5-AW5","v":0},{"$f":"BB5/AW5","v":{"$error":"#DIV/0!"}}]
["GENERAL SERVICE - COMMERCIAL",null,null,null,null,null,null,null,"Electricity Rate - All Additional kWh",null,null,"Total Loss Factor – Secondary Metered Customer < 5,000 kW",null,null,null,null,null,null,null,null,null,null,"VC",null,null,"Arrears certificate (credit reference)","Collection of account charge – no disconnection – after regular hours","Total Loss Factor – Secondary Metered Customer < 5,000 kW",null,null,null,null,null,null,null,null,null,"Brantford Power Inc.","Burlington Hydro Inc.",null,"GENERAL SERVICE - COMMERCIAL","kW",null,null,null,"Debt Retirement Charge (DRC)",null,null,{"$f":"AU6*AV6","v":0},{"$f":"AU6","v":0},{"$f":"AV6","v":0},{"$f":"AX6*AY6","v":0},null,{"$f":"AZ6-AW6","v":0},{"$f":"BB6/AW6","v":{"$error":"#DIV/0!"}}]
["GENERAL SERVICE - INSTITUTIONAL",null,null,null,null,null,null,null,"Electricity Rate - First 250 kWh",null,null,null,null,null,null,null,null,null,null,null,null,null,null,null,null,null,null,null,null,null,null,null,null,null,null,null,null,"Burlington Hydro Inc.","Cambridge and North Dumfries Hydro Inc.",null,"GENERAL SERVICE - INSTITUTIONAL","kW"]
["GENERAL SERVICE 1,000 TO 2,999 KW",null,null,null,null,null,null,null,"Electricity Rate -All Additional kWh",null,null,"Total Loss Factor – Secondary Metered Customer > 5,000 kW",null,null,null,null,null,null,null,null,null,null,"VC_Rate_Rider_",null,null,"Charge to certify cheque","Collection of account charge – no disconnection - during regular business hours","Total Loss Factor – Secondary Metered Customer > 5,000 kW",null,null,null,null,null,null,null,null,null,"Cambridge and North Dumfries Hydro Inc.","Canadian Niagara Power Inc.",null,"GENERAL SERVICE 1,000 TO 2,999 KW","kW",null,null,null,"Total Bill on RPP (before taxes)",null,null,null,null,null,null,null,{"$f":"AZ8-AW8","v":0}]
["GENERAL SERVICE 1,000 TO 4,999 KW",null,null,null,null,null,null,null,"Electricity Rate First 1,000 kWh",null,null,"Distribution Loss Factor - Secondary Metered Customer < 5,000 kW",null,null,null,null,null,null,null,null,null,null,"VC_GA_Rate_Rider_kW_",null,null,"Collection of Account Charge – No Disconnection","Collection of account charge – no disconnection – during regular hours",null,null,null,null,null,null,null,null,null,null,"Canadian Niagara Power Inc.","Centre Wellington Hydro Ltd.",null,"GENERAL SERVICE 1,000 TO 4,999 KW","kW",null,null,null,"HST",null,null,{"$f":"AV9*AW8","v":0},null,{"$f":"AV9","v":0},{"$f":"AY9*AZ8","v":0},null,{"$f":"AZ9-AW9","v":0},{"$f":"BB9/AW9","v":{"$error":"#DIV/0!"}}]
["GENERAL SERVICE 1,000 TO 4,999 KW - INTERVAL METERS",null,null,null,null,null,null,null,"Electricity Rate First 25,000 kWh",null,null,"Distribution Loss Factor - Secondary Metered Customer > 5,000 kW",null,null,null,null,null,null,null,null,null,null,"VC_LV_Rate",null,null,"Credit Card Convenience Charge","Collection/Disconnection/Load Limiter/Reconnection – if in Community",null,null,null,null,null,null,null,null,null,null,"Centre Wellington Hydro Ltd.","Chapleau Public Utilities Corporation",null,"GENERAL SERVICE 1,000 TO 4,999 KW - INTERVAL METERS","kW",null,null,null,"Total Bill (including HST)",null,null,{"$f":"AW9+AW8","v":0},null,null,{"$f":"AZ9+AZ8","v":0},null,{"$f":"AZ10-AW10","v":0},{"$f":"BB10/AW10","v":{"$error":"#DIV/0!"}}]
["GENERAL SERVICE 1,000 TO 4,999 KW (CO-GENERATION)",null,null,null,null,null,null,null,"Electricity Rate First 6,000 kWh",null,null,"Distribution Loss Factor - Primary Metered Customer < 5,000 kW",null,null,null,null,null,null,null,null,null,null,"RTSR_Network",null,null,"Credit check (plus credit agency costs)","Credit Card Convenience Charge",null,null,null,null,null,null,null,null,null,null,"Chapleau Public Utilities Corporation","Collus PowerStream Corporation",null,"GENERAL SERVICE 1,000 TO 4,999 KW (CO-GENERATION)","kW",null,null,null,"Ontario Clean Energy Benefit (OCEB)",null,null,{"$f":"-0.1*AW10","v":0},null,{"$f":"AV11","v":0},{"$f":"-0.1*AZ10","v":0},null,{"$f":"AZ11-AW11","v":0},{"$f":"BB11/AW11","v":{"$error":"#DIV/0!"}}]
["GENERAL SERVICE 1,500 TO 4,999 KW",null,null,null,null,null,null,null,"Electricity Rate Next 1,500 kWh",null,null,"Distribution Loss Factor - Primary Metered Customer > 5,000 kW",null,null,null,null,null,null,null,null,null,null,"RTSR_Connection",null,null,"Credit reference Letter","Disconnect/Reconnect at meter – after regular hours",null,null,null,null,null,null,null,null,null,null,"COLLUS PowerStream Corp.","Cooperative Hydro Embrun Inc.",null,"GENERAL SERVICE 1,500 TO 4,999 KW","kW",null,null,null,"Total Bill on RPP (including OCEB)",null,null,{"$f":"AW10+AW11","v":0},null,null,{"$f":"AZ10+AZ11","v":0},null,{"$f":"AZ12-AW12","v":0},{"$f":"BB12/AW12","v":{"$error":"#DIV/0!"}}]
["GENERAL SERVICE 2,500 TO 4,999 KW",null,null,null,null,null,null,null,"General Service 1,500 to 4,999 kW customer",null,null,null,null,null,null,null,null,null,null,null,null,null,null,null,null,null,null,null,null,null,null,null,null,null,null,null,null,"Cooperative Hydro Embrun Inc.","E.L.K. Energy Inc.",null,"GENERAL SERVICE 2,500 TO 4,999 KW","kW"]
["GENERAL SERVICE 3,000 TO 4,999 KW",null,null,null,null,null,null,null,"General Service 50 to 1,499 kW customer",null,null,"Total Loss Factor - Embedded Distributor",null,null,null,null,null,null,null,null,null,null,"RTSR_Network_Interval",null,null,"Credit reference/credit check (plus credit agency costs – General Service)","Disconnect/Reconnect at meter – during regular hours",null,null,null,null,null,null,null,null,null,null,"E.L.K. Energy Inc.","Enersource Hydro Mississauga Inc.",null,"GENERAL SERVICE 3,000 TO 4,999 KW","kW",null,null,null,"Total Bill on TOU (before taxes)",null,null,null,null,null,null,null,{"$f":"AZ14-AW14","v":0}]
["GENERAL SERVICE 3,000 TO 4,999 KW - INTERMEDIATE USE",null,null,null,null,null,null,null,"General Service Large Use customer",null,null,"Total Loss Factor – Embedded Distributor – Hydro One Networks Inc.",null,null,null,null,null,null,null,null,null,null,"RTSR_Connection_Interval",null,null,"Credit Reference/credit check (plus credit agency costs)","Disconnect/Reconnect at pole – after regular hours",null,null,null,null,null,null,null,null,null,null,"Enersource Hydro Mississauga Inc.","Entegrus Powerlines Inc.",null,"GENERAL SERVICE 3,000 TO 4,999 KW - INTERMEDIATE USE","kW",null,null,null,"HST",null,null,{"$f":"AV15*AW14","v":0},null,{"$f":"AV15","v":0},{"$f":"AY15*AZ14","v":0},null,{"$f":"AZ15-AW15","v":0},{"$f":"BB15/AW15","v":{"$error":"#DIV/0!"}}]
["GENERAL SERVICE 3,000 TO 4,999 KW - INTERVAL METERED",null,null,null,null,null,null,null,"Green Energy Act Initiatives Funding Adder - effective until the date of the next \n      cost of service-based rate order",null,null,null,null,null,null,null,null,null,null,null,null,null,"RTSR_Network_Interval_GR1000kW",null,null,"Dispute Test – Commercial self contained -- MC","Disconnect/Reconnect at pole – during regular hours",null,null,null,null,null,null,null,null,null,null,"Entegrus Powerlines Inc.","Entegrus Powerlines Inc. - Dutton Service Area",null,"GENERAL SERVICE 3,000 TO 4,999 KW - INTERVAL METERED","kW",null,null,null,"Total Bill (including HST)",null,null,{"$f":"AW15+AW14","v":0},null,null,{"$f":"AZ15+AZ14","v":0},null,{"$f":"AZ16-AW16","v":0},{"$f":"BB16/AW16","v":{"$error":"#DIV/0!"}}]
["GENERAL SERVICE 3,000 TO 4,999 KW - TIME OF USE",null,null,null,null,null,null,null,"Green Energy Act Plan Funding Adder",null,null,null,null,null,null,null,null,null,null,null,null,null,"RTSR_Connection_Interval_GR1000kW",null,null,"Dispute Test – Commercial TT -- MC","Disconnect/Reconnect Charge – At Meter – After Hours",null,null,null,null,null,null,null,null,null,null,"EnWin Utilities Ltd.","Entegrus Powerlines Inc. - former Chatham-Kent Hydro Service Area",null,"GENERAL SERVICE 3,000 TO 4,999 KW - TIME OF USE","kW",null,null,null,"Ontario Clean Energy Benefit (OCEB)",null,null,{"$f":"-0.1*AW16","v":0},null,{"$f":"AV17","v":0},{"$f":"-0.1*AZ16","v":0},null,{"$f":"AZ17-AW17","v":0},{"$f":"BB17/AW17","v":{"$error":"#DIV/0!"}}]
["GENERAL SERVICE 50 TO 1,000 KW",null,null,null,null,null,null,null,"Green Energy Act Plan Funding Adder - effective April 1, 2013 until March 31, 2014",null,null,null,null,null,null,null,null,null,null,null,null,null,"RTSR_Line_Connection",null,null,"Dispute Test – Residential","Disconnect/Reconnect Charge – At Meter – During Regular Hours",null,null,null,null,null,null,null,null,null,null,"Erie Thames Powerlines Corporation","Entegrus Powerlines Inc. - Newbury Service Area",null,"GENERAL SERVICE 50 TO 1,000 KW","kW",null,null,null,"Total Bill on TOU (including OCEB)",null,null,{"$f":"AW16+AW17","v":0},null,null,{"$f":"AZ16+AZ17","v":0},null,{"$f":"AZ18-AW18","v":0},{"$f":"BB18/AW18","v":{"$error":"#DIV/0!"}}]
["GENERAL SERVICE 50 TO 1,000 KW - INTERVAL METERS",null,null,null,null,null,null,null,"Green Energy Act Plan Funding Adder - effective April 1, 2014 until March 31, 2015",null,null,null,null,null,null,null,null,null,null,null,null,null,"RTSR_Transformer_Connection",null,null,"Duplicate Invoices for previous billing","Disconnect/Reconnect Charge – At Pole – After Hours",null,null,null,null,null,null,null,null,null,null,"Espanola Regional Hydro Distribution Corporation","Entegrus Powerlines Inc. - Strathroy, Mount Brydges and Parkhill Service Areas",null,"GENERAL SERVICE 50 TO 1,000 KW - INTERVAL METERS","kW"]
["GENERAL SERVICE 50 TO 1,000 KW - NON INTERVAL METERS",null,null,null,null,null,null,null,"ICM Rate Rider (2014) - in effect until the effective date of the next cost of service rates",null,null,null,null,null,null,null,null,null,null,null,null,null,"WMSR",null,null,"Easement Letter","Disconnect/Reconnect Charge – At Pole – During Regular Hours",null,null,null,null,null,null,null,null,null,null,"Essex Powerlines Corporation","ENWIN Utilities Ltd.",null,"GENERAL SERVICE 50 TO 1,000 KW - NON INTERVAL METERS","kW"]
["GENERAL SERVICE 50 TO 1,499 KW",null,null,null,null,null,null,null,"Low Voltage Service Charge",null,null,null,null,null,null,null,null,null,null,null,null,null,"RRRP",null,null,"Income Tax Letter","Disconnect/Reconnect Charges for non payment of account - At Meter After Hours",null,null,null,null,null,null,null,null,null,null,"Festival Hydro Inc.","Erie Thames Powerlines Corporation",null,"GENERAL SERVICE 50 TO 1,499 KW","kW"]
["GENERAL SERVICE 50 TO 1,499 KW - INTERVAL METERED",null,null,null,null,null,null,null,"Low Voltage Service Rate",null,null,null,null,null,null,null,null,null,null,null,null,null,"SPC",null,null,"Interval Meter Interrogation","Disconnect/Reconnect charges for non payment of account – at meter after regular hours",null,null,null,null,null,null,null,null,null,null,"Fort Albany Power Corporation","Espanola Regional Hydro Distribution Corporation",null,"GENERAL SERVICE 50 TO 1,499 KW - INTERVAL METERED","kW"]
["GENERAL SERVICE 50 TO 2,499 KW",null,null,null,null,null,null,null,"Low Voltage Volumetric Rate",null,null,null,null,null,null,null,null,null,null,null,null,null,"DRC",null,null,"Interval meter request change","Disconnect/Reconnect Charges for non payment of account - At Meter During Regular Hours",null,null,null,null,null,null,null,null,null,null,"Fort Frances Power Corporation","Essex Powerlines Corporation",null,"GENERAL SERVICE 50 TO 2,499 KW","kW"]
["GENERAL SERVICE 50 TO 2,999 KW",null,null,null,null,null,null,null,"LRAM Rate Rider - Effective Until April 30, 2015",null,null,null,null,null,null,null,null,null,null,null,null,null,"SSS",null,null,"Legal letter","Disconnect/Reconnect charges for non payment of account – at meter during regular hours",null,null,null,null,null,null,null,null,null,null,"Greater Sudbury Hydro Inc.","Festival Hydro Inc.",null,"GENERAL SERVICE 50 TO 2,999 KW","kW"]
["GENERAL SERVICE 50 TO 2,999 KW - INTERVAL METERED",null,null,null,null,null,null,null,"Minimum Distribution Charge - per KW of maximum billing demand in the previous 11 months",null,null,null,null,null,null,null,null,null,null,null,null,null,"SFLF",null,null,"Legal letter charge","Disconnect/Reconnect charges for non payment of account – at pole after regular hours",null,null,null,null,null,null,null,null,null,null,"Grimsby Power Inc.","Fort Frances Power Corporation",null,"GENERAL SERVICE 50 TO 2,999 KW - INTERVAL METERED","kW"]
["GENERAL SERVICE 50 TO 2,999 KW - TIME OF USE","January",null,null,null,null,null,null,"Monthly Distribution Wheeling Service Rate - Dedicated LV Line",null,null,null,null,null,null,null,null,null,null,null,null,null,"DLF_Secondary_LT_5000kW",null,null,"Meter dispute charge plus Measurement Canada fees (if meter found correct)","Disconnect/Reconnect charges for non payment of account – at pole during regular hours",null,null,null,null,null,null,null,null,null,null,"Guelph Hydro Electric Systems Inc.","Greater Sudbury Hydro Inc.",null,"GENERAL SERVICE 50 TO 2,999 KW - TIME OF USE","kW"]
["GENERAL SERVICE 50 TO 4,999 KW","February",null,null,null,null,null,null,"Monthly Distribution Wheeling Service Rate - Hydro One Networks",null,null,null,null,null,null,null,null,null,null,null,null,null,"DLF_Secondary_GT_5000kW",null,null,"Notification charge","Disconnect/Reconnection for >300 volts - after regular hours",null,null,null,null,null,null,null,null,null,null,"Haldimand County Hydro Inc.","Grimsby Power Inc.",null,"GENERAL SERVICE 50 TO 4,999 KW","kW"]
["GENERAL SERVICE 50 TO 4,999 KW - INTERVAL METERED","March",null,null,null,null,null,null,"Monthly Distribution Wheeling Service Rate - Shared LV Line",null,null,null,null,null,null,null,null,null,null,null,null,null,"DLF_Primary_LT_5000kW",null,null,"Pulling Post Dated Cheques","Disconnect/Reconnection for >300 volts - during regular hours",null,null,null,null,null,null,null,null,null,null,"Halton Hills Hydro Inc.","Guelph Hydro Electric Systems Inc.",null,"GENERAL SERVICE 50 TO 4,999 KW - INTERVAL METERED","kW"]
["GENERAL SERVICE 50 TO 4,999 KW - TIME OF USE","April",null,null,null,null,null,null,"Monthly Distribution Wheeling Service Rate - Waterloo North Hydro",null,null,null,null,null,null,null,null,null,null,null,null,null,"DLF_Primary_GT_5000kW",null,null,"Request for other billing information","Disposal of Concrete Poles",null,null,null,null,null,null,null,null,null,null,"Hearst Power Distribution Company Limited","Haldimand County Hydro Inc.",null,"GENERAL SERVICE 50 TO 4,999 KW - TIME OF USE","kW"]
["GENERAL SERVICE 50 TO 4,999 KW (COGENERATION)","May",null,null,null,null,null,null,"Rate Rider for Application of Tax Change - effective until April 30, 2015",null,null,null,null,null,null,null,null,null,null,null,null,null,"TLF_Secondary_LT_5000kW",null,null,"Returned cheque (plus bank charges)","Dispute Test – Commercial TT -- MC",null,null,null,null,null,null,null,null,null,null,"Horizon Utilities Corporation","Halton Hills Hydro Inc.",null,"GENERAL SERVICE 50 TO 4,999 KW (COGENERATION)","kW"]
["GENERAL SERVICE 50 TO 4,999 KW (FORMERLY TIME OF USE)","June",null,null,null,null,null,null,"Rate Rider for Application of Tax Change - effective until December 31, 2014",null,null,null,null,null,null,null,null,null,null,null,null,null,"TLF_Secondary_GT_5000kW",null,null,"Returned cheque charge (plus bank charges)","Install/Remove load control device – after regular hours",null,null,null,null,null,null,null,null,null,null,"Hydro 2000 Inc.","Hearst Power Distribution Company Limited",null,"GENERAL SERVICE 50 TO 4,999 KW (FORMERLY TIME OF USE)","kW"]
["GENERAL SERVICE 50 TO 499 KW","July",null,null,null,null,null,null,"Rate Rider for Application of Tax Change (2014) - effective until April 30, 2015",null,null,null,null,null,null,null,null,null,null,null,null,null,"TLF_Primary_LT_5000kW",null,null,"Special Billing Service (aggregation)","Install/Remove load control device – during regular hours",null,null,null,null,null,null,null,null,null,null,"Hydro Hawkesbury Inc.","Horizon Utilities Corporation",null,"GENERAL SERVICE 50 TO 499 KW","kW"]
["GENERAL SERVICE 50 TO 699 KW","August",null,null,null,null,null,null,"Rate Rider for Application of Tax Change (per connection) - effective until April 30, 2015",null,null,null,null,null,null,null,null,null,null,null,null,null,"TLF_Primary_GT_5000kW",null,null,"Special Billing Service (sub-metering charge per meter)","Interval Meter Interrogation",null,null,null,null,null,null,null,null,null,null,"Hydro One Brampton Networks Inc.","Hydro 2000 Inc.",null,"GENERAL SERVICE 50 TO 699 KW","kW"]
["GENERAL SERVICE 50 TO 999 KW","September",null,null,null,null,null,null,"Rate Rider for CGAAP Accounting Changes (2013) - effective until April 30, 2017",null,null,null,null,null,null,null,null,null,null,null,null,null,"TLF_EmbeddedDistributor",null,null,"Special meter reads","Interval Meter Load Management Tool Charge $/month",null,null,null,null,null,null,null,null,null,null,"Hydro One Networks Inc.","Hydro Hawkesbury Inc.",null,"GENERAL SERVICE 50 TO 999 KW","kW"]
["GENERAL SERVICE 50 TO 999 KW - INTERVAL METERED","October",null,null,null,null,null,null,"Rate Rider for Deferral/Variance Account (2012) - effective unitl April 30, 2016",null,null,null,null,null,null,null,null,null,null,null,null,null,null,null,null,"Statement of Account","Interval meter request change",null,null,null,null,null,null,null,null,null,null,"Hydro One Remote Communities Inc.","Hydro One Brampton Networks Inc.",null,"GENERAL SERVICE 50 TO 999 KW - INTERVAL METERED","kW"]
["GENERAL SERVICE 500 TO 4,999 KW","November",null,null,null,null,null,null,"Rate Rider for Deferral/Variance Account Disposition – effective until April 30, 2015",null,null,null,null,null,null,null,null,null,null,null,null,null,null,null,null,"Unprocessed Payment Charge (plus bank charges)","Late Payment – per annum",null,null,null,null,null,null,null,null,null,null,"Hydro Ottawa Limited","Hydro One Networks Inc.",null,"GENERAL SERVICE 500 TO 4,999 KW","kW"]
["GENERAL SERVICE 700 TO 4,999 KW","December",null,null,null,null,null,null,"Rate Rider for Deferral/Variance Account Disposition (2012) - effective until April 30, 2016",null,null,null,null,null,null,null,null,null,null,null,null,null,null,null,null,null,"Late Payment – per month",null,null,null,null,null,null,null,null,null,null,"Innpower Corporation","Hydro Ottawa Limited",null,"GENERAL SERVICE 700 TO 4,999 KW","kW"]
["GENERAL SERVICE DEMAND BILLED (50 KW AND ABOVE) [GSD]",null,null,null,null,null,null,null,"Rate Rider for Deferral/Variance Account Disposition (2013) - effective until April 30, 2014",null,null,null,null,null,null,null,null,null,null,null,null,null,null,null,null,null,"Layout fees",null,null,null,null,null,null,null,null,null,null,"Kashechewan Power Corporation","Innisfil Hydro Distribution Systems Limited",null,"GENERAL SERVICE DEMAND BILLED (50 KW AND ABOVE) [GSD]","kW"]
["GENERAL SERVICE ENERGY BILLED (LESS THAN 50 KW) [GSE-METERED]",null,null,null,null,null,null,null,"Rate Rider for Deferral/Variance Account Disposition (2014) - effective until April 28, 2016",null,null,null,null,null,null,null,null,null,null,null,null,null,null,null,null,null,"Meter dispute charge plus Measurement Canada fees (if meter found correct)",null,null,null,null,null,null,null,null,null,null,"Kenora Hydro Electric Corporation Ltd.","Kenora Hydro Electric Corporation Ltd.",null,"GENERAL SERVICE ENERGY BILLED (LESS THAN 50 KW) [GSE-METERED]","kWh"]
["GENERAL SERVICE ENERGY BILLED (LESS THAN TO 50 KW) [GSE-UNMETERED]",null,null,null,null,null,null,null,"Rate Rider for Deferral/Variance Account Disposition (2014) - effective until April 30, 2015",null,null,null,null,null,null,null,null,null,null,null,null,null,null,null,null,null,"Meter Interrogation Charge",null,null,null,null,null,null,null,null,null,null,"Kingston Hydro Corporation","Kingston Hydro Corporation",null,"GENERAL SERVICE ENERGY BILLED (LESS THAN TO 50 KW) [GSE-UNMETERED]","kWh"]
["GENERAL SERVICE EQUAL TO OR GREATER THAN 1,500 KW",null,null,null,null,null,null,null,"Rate Rider for Deferral/Variance Account Disposition (2014) - effective until December 31, 2014",null,null,null,null,null,null,null,null,null,null,null,null,null,null,null,null,null,"Missed Service Appointment",null,null,null,null,null,null,null,null,null,null,"Kitchener-Wilmot Hydro Inc.","Kitchener-Wilmot Hydro Inc.",null,"GENERAL SERVICE EQUAL TO OR GREATER THAN 1,500 KW","kW"]
["GENERAL SERVICE EQUAL TO OR GREATER THAN 1,500 KW - INTERVAL METERED",null,null,null,null,null,null,null,"Rate Rider for Deferral/Variance Account Disposition (2014) - effective until December 31, 2015",null,null,null,null,null,null,null,null,null,null,null,null,null,null,null,null,null,"Norfolk Pole Rentals – Billed",null,null,null,null,null,null,null,null,null,null,"Lakefront Utilities Inc.","Lakefront Utilities Inc.",null,"GENERAL SERVICE EQUAL TO OR GREATER THAN 1,500 KW - INTERVAL METERED","kW"]
["GENERAL SERVICE GREATER THAN 1,000 KW",null,null,null,null,null,null,null,"Rate Rider for Deferral/Variance Account Dispositon (2012) - effective until April 30, 2016",null,null,null,null,null,null,null,null,null,null,null,null,null,null,null,null,null,"Optional Interval/TOU Meter charge $/month",null,null,null,null,null,null,null,null,null,null,"Lakeland Power Distribution Ltd.","Lakeland Power Distribution Ltd.",null,"GENERAL SERVICE GREATER THAN 1,000 KW","kW"]
["GENERAL SERVICE GREATER THAN 50 kW - WMP",null,null,null,null,null,null,null,"Rate Rider for Disposition of Accounting Changes Under CGAAP Account 1576 \n      - effective until April 30, 2016",null,null,null,null,null,null,null,null,null,null,null,null,null,null,null,null,null,"Overtime Locate",null,null,null,null,null,null,null,null,null,null,"London Hydro Inc.","London Hydro Inc.",null,"GENERAL SERVICE GREATER THAN 50 kW - WMP","kW"]
["GENERAL SERVICE INTERMEDIATE 1,000 TO 4,999 KW",null,null,null,null,null,null,null,"Rate Rider for Disposition of Deferral/Variance Accounts (2010) - effective until December 31, 2014",null,null,null,null,null,null,null,null,null,null,null,null,null,null,null,null,null,"Owner Requested Disconnection/Reconnection – after regular hours",null,null,null,null,null,null,null,null,null,null,"Midland Power Utility Corporation","Midland Power Utility Corporation",null,"GENERAL SERVICE INTERMEDIATE 1,000 TO 4,999 KW","kW"]
["GENERAL SERVICE INTERMEDIATE RATE CLASS 1,000 TO 4,999 KW (FORMERLY GENERAL SERVICE > 50 KW CUSTOMERS)",null,null,null,null,null,null,null,"Rate Rider for Disposition of Deferral/Variance Accounts (2011) - effective until April 30, 2015",null,null,null,null,null,null,null,null,null,null,null,null,null,null,null,null,null,"Owner Requested Disconnection/Reconnection – during regular hours",null,null,null,null,null,null,null,null,null,null,"Milton Hydro Distribution Inc.","Milton Hydro Distribution Inc.",null,"GENERAL SERVICE INTERMEDIATE RATE CLASS 1,000 TO 4,999 KW (FORMERLY GENERAL SERVICE > 50 KW CUSTOMERS)","kW"]
["GENERAL SERVICE INTERMEDIATE RATE CLASS 1,000 TO 4,999 KW (FORMERLY LARGE USE CUSTOMERS)",null,null,null,null,null,null,null,"Rate Rider for Disposition of Deferral/Variance Accounts (2011) - effective until April 30, 2016",null,null,null,null,null,null,null,null,null,null,null,null,null,null,null,null,null,"Returned cheque (plus bank charges)",null,null,null,null,null,null,null,null,null,null,"Newmarket-Tay Power Distribution Ltd.","Newmarket - Tay Power Distribution Ltd.",null,"GENERAL SERVICE INTERMEDIATE RATE CLASS 1,000 TO 4,999 KW (FORMERLY LARGE USE CUSTOMERS)","kW"]
["GENERAL SERVICE LESS THAN 50 KW",null,null,null,null,null,null,null,"Rate Rider for Disposition of Deferral/Variance Accounts (2012) - effective until April 30, 2014",null,null,null,null,null,null,null,null,null,null,null,null,null,null,null,null,null,"Rural system expansion / line connection fee",null,null,null,null,null,null,null,null,null,null,"Niagara Peninsula Energy Inc.","Niagara Peninsula Energy Inc.",null,"GENERAL SERVICE LESS THAN 50 KW","kWh"]
["GENERAL SERVICE LESS THAN 50 KW - SINGLE PHASE ENERGY-BILLED [G1]",null,null,null,null,null,null,null,"Rate Rider for Disposition of Deferral/Variance Accounts (2012) - effective until April 30, 2015",null,null,null,null,null,null,null,null,null,null,null,null,null,null,null,null,null,"Same Day Open Trench",null,null,null,null,null,null,null,null,null,null,"Niagara-on-the-Lake Hydro Inc.","Niagara-on-the-Lake Hydro Inc.",null,"GENERAL SERVICE LESS THAN 50 KW - SINGLE PHASE ENERGY-BILLED [G1]","kWh"]
["GENERAL SERVICE LESS THAN 50 KW - THREE PHASE ENERGY-BILLED [G3]",null,null,null,null,null,null,null,"Rate Rider for Disposition of Deferral/Variance Accounts (2012) - effective until April 30, 2016",null,null,null,null,null,null,null,null,null,null,null,null,null,null,null,null,null,"Scheduled Day Open Trench",null,null,null,null,null,null,null,null,null,null,"Norfolk Power Distribution Inc.","Norfolk Power Distribution Inc.",null,"GENERAL SERVICE LESS THAN 50 KW - THREE PHASE ENERGY-BILLED [G3]","kWh"]
["GENERAL SERVICE LESS THAN 50 KW - TRANSMISSION CLASS ENERGY-BILLED [T]",null,null,null,null,null,null,null,"Rate Rider for Disposition of Deferral/Variance Accounts (2012) - effective until August 31, 2014",null,null,null,null,null,null,null,null,null,null,null,null,null,null,null,null,null,"Service call – after regular hours",null,null,null,null,null,null,null,null,null,null,"North Bay Hydro Distribution Limited","North Bay Hydro Distribution Limited",null,"GENERAL SERVICE LESS THAN 50 KW - TRANSMISSION CLASS ENERGY-BILLED [T]","kWh"]
["GENERAL SERVICE LESS THAN 50 KW - URBAN ENERGY-BILLED [UG]",null,null,null,null,null,null,null,"Rate Rider for Disposition of Deferral/Variance Accounts (2012) - effective until December 31, 2015",null,null,null,null,null,null,null,null,null,null,null,null,null,null,null,null,null,"Service call – customer owned equipment",null,null,null,null,null,null,null,null,null,null,"Northern Ontario Wires Inc.","Northern Ontario Wires Inc.",null,"GENERAL SERVICE LESS THAN 50 KW - URBAN ENERGY-BILLED [UG]","kWh"]
["GENERAL SERVICE SINGLE PHASE - G1",null,null,null,null,null,null,null,"Rate Rider for Disposition of Deferral/Variance Accounts (2012) - effective until December 31, 2016 \n      Applicable only in the former service area of Clinton Power",null,null,null,null,null,null,null,null,null,null,null,null,null,null,null,null,null,"Service Call – Customer-owned Equipment – After Regular Hours",null,null,null,null,null,null,null,null,null,null,"Oakville Hydro Electricity Distribution Inc.","Oakville Hydro Electricity Distribution Inc.",null,"GENERAL SERVICE SINGLE PHASE - G1","kW"]
["GENERAL SERVICE THREE PHASE - G3",null,null,null,null,null,null,null,"Rate Rider for Disposition of Deferral/Variance Accounts (2012) – effective until December 31, 2016 \n      Applicable only in the former service area of Clinton Power",null,null,null,null,null,null,null,null,null,null,null,null,null,null,null,null,null,"Service Call – Customer-owned Equipment – During Regular Hours",null,null,null,null,null,null,null,null,null,null,"Orangeville Hydro Limited","Orangeville Hydro Limited",null,"GENERAL SERVICE THREE PHASE - G3","kW"]
["INTERMEDIATE USERS",null,null,null,null,null,null,null,"Rate Rider for Disposition of Deferral/Variance Accounts (2012) - effective until January 31, 2014",null,null,null,null,null,null,null,null,null,null,null,null,null,null,null,null,null,"Service Charge for onsite interrogation of interval meter due to customer phone line failure - required weekly until line repaired $ 6",null,null,null,null,null,null,null,null,null,null,"Orillia Power Distribution Corporation","Orillia Power Distribution Corporation",null,"INTERMEDIATE USERS","kW"]
["INTERMEDIATE WITH SELF GENERATION",null,null,null,null,null,null,null,"Rate Rider for Disposition of Deferral/Variance Accounts (2012) - effective until June 30, 2014",null,null,null,null,null,null,null,null,null,null,null,null,null,null,null,null,null,"Service Layout - Commercial",null,null,null,null,null,null,null,null,null,null,"Oshawa PUC Networks Inc.","Oshawa PUC Networks Inc.",null,"INTERMEDIATE WITH SELF GENERATION","kW"]
["LARGE USE",null,null,null,null,null,null,null,"Rate Rider for Disposition of Deferral/Variance Accounts (2013) - Applicable only to \n      Wholesale Market Participants - effective until April 30, 2015",null,null,null,null,null,null,null,null,null,null,null,null,null,null,null,null,null,"Service Layout - ResidentiaI",null,null,null,null,null,null,null,null,null,null,"Ottawa River Power Corporation","Ottawa River Power Corporation",null,"LARGE USE","kW"]
["LARGE USE - 3TS",null,null,null,null,null,null,null,"Rate Rider for Disposition of Deferral/Variance Accounts (2013) - effective until April 30, 2014",null,null,null,null,null,null,null,null,null,null,null,null,null,null,null,null,null,"Special Billing Service (sub-metering charge per meter)",null,null,null,null,null,null,null,null,null,null,"Peterborough Distribution Incorporated","Parry Sound Power Corporation",null,"LARGE USE - 3TS","kW"]
["LARGE USE - FORD ANNEX",null,null,null,null,null,null,null,"Rate Rider for Disposition of Deferral/Variance Accounts (2013) - effective until April 30, 2015",null,null,null,null,null,null,null,null,null,null,null,null,null,null,null,null,null,"Special meter reads",null,null,null,null,null,null,null,null,null,null,"PowerStream Inc.","Peterborough Distribution Incorporated",null,"LARGE USE - FORD ANNEX","kW"]
["LARGE USE - REGULAR",null,null,null,null,null,null,null,"Rate Rider for Disposition of Deferral/Variance Accounts (2013) - effective until April 30, 2015 \n      - not applicable to Wholesale Market Participants",null,null,null,null,null,null,null,null,null,null,null,null,null,null,null,null,null,"Specific Charge for Access to the Power Poles - $/pole/year",null,null,null,null,null,null,null,null,null,null,"PUC Distribution Inc.","PowerStream Inc.",null,"LARGE USE - REGULAR","kW"]
["LARGE USE > 5000 KW",null,null,null,null,null,null,null,"Rate Rider for Disposition of Deferral/Variance Accounts (2013) - effective until April 30, 2017",null,null,null,null,null,null,null,null,null,null,null,null,null,null,null,null,null,"Specific Charge for Bell Canada Access to the Power Poles – per pole/year",null,null,null,null,null,null,null,null,null,null,"Renfrew Hydro Inc.","PUC Distribution Inc.",null,"LARGE USE > 5000 KW","kW"]
["microFIT",null,null,null,null,null,null,null,"Rate Rider for Disposition of Deferral/Variance Accounts (2013) - effective until August 31, 2014",null,null,null,null,null,null,null,null,null,null,null,null,null,null,null,null,null,"Switching for company maintenance – Charge based on Time and Materials",null,null,null,null,null,null,null,null,null,null,"Rideau St. Lawrence Distribution Inc.","Renfrew Hydro Inc.",null,"microFIT","$"]
["RESIDENTIAL",null,null,null,null,null,null,null,"Rate Rider for Disposition of Deferral/Variance Accounts (2013) - effective until December 31, 2014",null,null,null,null,null,null,null,null,null,null,null,null,null,null,null,null,null,"Temporary Service – Install & remove – overhead – no transformer",null,null,null,null,null,null,null,null,null,null,"Sioux Lookout Hydro Inc.","Rideau St. Lawrence Distribution Inc.",null,"RESIDENTIAL","kWh"]
["RESIDENTIAL - HENSALL",null,null,null,null,null,null,null,"Rate Rider for Disposition of Deferral/Variance Accounts (2013) - effective until May 31, 2014",null,null,null,null,null,null,null,null,null,null,null,null,null,null,null,null,null,"Temporary Service – Install & remove – overhead – with transformer",null,null,null,null,null,null,null,null,null,null,"St. Thomas Energy Inc.","Sioux Lookout Hydro Inc.",null,"RESIDENTIAL - HENSALL","kWh"]
["RESIDENTIAL - HIGH DENSITY [R1]",null,null,null,null,null,null,null,"Rate Rider for Disposition of Deferral/Variance Accounts (2014) - effective until December 31, 2015",null,null,null,null,null,null,null,null,null,null,null,null,null,null,null,null,null,"Temporary Service – Install & remove – underground – no transformer",null,null,null,null,null,null,null,null,null,null,"Thunder Bay Hydro Electricity Distribution Inc.","St. Thomas Energy Inc.",null,"RESIDENTIAL - HIGH DENSITY [R1]","kWh"]
["RESIDENTIAL - LOW DENSITY [R2]",null,null,null,null,null,null,null,"Rate Rider for Disposition of Deferred PILs Variance Account 1562 - effective until March 31, 2016",null,null,null,null,null,null,null,null,null,null,null,null,null,null,null,null,null,"Temporary service install & remove – overhead – no transformer",null,null,null,null,null,null,null,null,null,null,"Tillsonburg Hydro Inc.","Thunder Bay Hydro Electricity Distribution Inc.",null,"RESIDENTIAL - LOW DENSITY [R2]","kWh"]
["RESIDENTIAL - MEDIUM DENSITY [R1]",null,null,null,null,null,null,null,"Rate Rider for Disposition of Deferred PILs Variance Account 1562 (2012) - effective until April 30, 2015",null,null,null,null,null,null,null,null,null,null,null,null,null,null,null,null,null,"Temporary Service Install & Remove – Overhead – With Transformer",null,null,null,null,null,null,null,null,null,null,"Toronto Hydro-Electric System Limited","Tillsonburg Hydro Inc.",null,"RESIDENTIAL - MEDIUM DENSITY [R1]","kWh"]
["RESIDENTIAL - NORMAL DENSITY [R2]",null,null,null,null,null,null,null,"Rate Rider for Disposition of Deferred PILs Variance Account 1562 (2012) - effective until April 30, 2016",null,null,null,null,null,null,null,null,null,null,null,null,null,null,null,null,null,"Temporary Service Install & Remove – Underground – No Transformer",null,null,null,null,null,null,null,null,null,null,"Veridian Connections Inc.","Toronto Hydro-Electric System Limited",null,"RESIDENTIAL - NORMAL DENSITY [R2]","kWh"]
["RESIDENTIAL - TIME OF USE",null,null,null,null,null,null,null,"Rate Rider for Disposition of Deferred PILs Variance Account 1562 (2nd Installment - 2012) \n      - effective until April 30, 2016",null,null,null,null,null,null,null,null,null,null,null,null,null,null,null,null,null,"Temporary service installation and removal – overhead – no transformer",null,null,null,null,null,null,null,null,null,null,"Wasaga Distribution Inc.","Veridian Connections Inc.",null,"RESIDENTIAL - TIME OF USE","kWh"]
["RESIDENTIAL - URBAN [UR]",null,null,null,null,null,null,null,"Rate Rider for Disposition of Deferred PILs Variance Account 1562 (per connection) (2012) \n      - effective until April 30, 2015",null,null,null,null,null,null,null,null,null,null,null,null,null,null,null,null,null,"Temporary service installation and removal – overhead – with transformer",null,null,null,null,null,null,null,null,null,null,"Waterloo North Hydro Inc.","Wasaga Distribution Inc.",null,"RESIDENTIAL - URBAN [UR]","kWh"]
["RESIDENTIAL REGULAR",null,null,null,null,null,null,null,"Rate Rider for Disposition of Deferred PILs Variance Account 1562 (per connection) (2012) \n      - effective until April 30, 2016",null,null,null,null,null,null,null,null,null,null,null,null,null,null,null,null,null,"Temporary service installation and removal – underground – no transformer",null,null,null,null,null,null,null,null,null,null,"Welland Hydro-Electric System Corp.","Waterloo North Hydro Inc.",null,"RESIDENTIAL REGULAR","kWh"]
["RESIDENTIAL SUBURBAN",null,null,null,null,null,null,null,"Rate Rider for Disposition of Global Adjustment Sub-Account (2011)  - effective until April 30, 2015 \n      Applicable only for Non-RPP Customers",null,null,null,null,null,null,null,null,null,null,null,null,null,null,null,null,null,null,null,null,null,null,null,null,null,null,null,null,"Wellington North Power Inc.","Welland Hydro-Electric System Corp.",null,"RESIDENTIAL SUBURBAN","kWh"]
["RESIDENTIAL SUBURBAN SEASONAL",null,null,null,null,null,null,null,"Rate Rider for Disposition of Global Adjustment Sub-Account (2011) - effective until April 30, 2016 \n      Applicable only for Non-RPP Customers",null,null,null,null,null,null,null,null,null,null,null,null,null,null,null,null,null,null,null,null,null,null,null,null,null,null,null,null,"West Coast Huron Energy Inc.","Wellington North Power Inc.",null,"RESIDENTIAL SUBURBAN SEASONAL","kWh"]
["RESIDENTIAL SUBURBAN YEAR ROUND",null,null,null,null,null,null,null,"Rate Rider for Disposition of Global Adjustment Sub-Account (2012) - effective until April 30, 2014 \n      Applicable only for Non-RPP Customers",null,null,null,null,null,null,null,null,null,null,null,null,null,null,null,null,null,null,null,null,null,null,null,null,null,null,null,null,"Westario Power Inc.","West Coast Huron Energy Inc.",null,"RESIDENTIAL SUBURBAN YEAR ROUND","kWh"]
["RESIDENTIAL URBAN",null,null,null,null,null,null,null,"Rate Rider for Disposition of Global Adjustment Sub-Account (2012) - effective until April 30, 2015 \n      Applicable only for Non-RPP Customers",null,null,null,null,null,null,null,null,null,null,null,null,null,null,null,null,null,null,null,null,null,null,null,null,null,null,null,null,"Whitby Hydro Electric Corporation","Westario Power Inc.",null,"RESIDENTIAL URBAN","kWh"]
["RESIDENTIAL URBAN YEAR-ROUND",null,null,null,null,null,null,null,"Rate Rider for Disposition of Global Adjustment Sub-Account (2012) - effective until April 30, 2015 \n      Applicatble only for Non-RPP Customers",null,null,null,null,null,null,null,null,null,null,null,null,null,null,null,null,null,null,null,null,null,null,null,null,null,null,null,null,"Woodstock Hydro Services Inc.","Whitby Hydro Electric Corporation",null,"RESIDENTIAL URBAN YEAR-ROUND","kWh"]
["SEASONAL RESIDENTIAL",null,null,null,null,null,null,null,"Rate Rider for Disposition of Global Adjustment Sub-Account (2012) - effective until April 30, 2016 \n      Applicable only for Non-RPP Customers",null,null,null,null,null,null,null,null,null,null,null,null,null,null,null,null,null,null,null,null,null,null,null,null,null,null,null,null,null,"Woodstock Hydro Services Inc.",null,"SEASONAL RESIDENTIAL","kWh"]
["SEASONAL RESIDENTIAL - HIGH DENSITY [R3]",null,null,null,null,null,null,null,"Rate Rider for Disposition of Global Adjustment Sub-Account (2012) - effective until January 31, 2014. \n      Applicable only for Non-RPP Customers",null,null,null,null,null,null,null,null,null,null,null,null,null,null,null,null,null,null,null,null,null,null,null,null,null,null,null,null,null,null,null,"SEASONAL RESIDENTIAL - HIGH DENSITY [R3]","kWh"]
["SEASONAL RESIDENTIAL - NORMAL DENSITY [R4]",null,null,null,null,null,null,null,"Rate Rider for Disposition of Global Adjustment Sub-Account (2012) - effective until June 30, 2014 \n      Applicable only for Non-RPP Customers",null,null,null,null,null,null,null,null,null,null,null,null,null,null,null,null,null,null,null,null,null,null,null,null,null,null,null,null,null,null,null,"SEASONAL RESIDENTIAL - NORMAL DENSITY [R4]","kWh"]
["SENTINEL LIGHTING",null,null,null,null,null,null,null,"Rate Rider for Disposition of Global Adjustment Sub-Account (2012) Applicable only for Non-RPP Customers \n      - effective until August 31, 2014",null,null,null,null,null,null,null,null,null,null,null,null,null,null,null,null,null,null,null,null,null,null,null,null,null,null,null,null,null,null,null,"SENTINEL LIGHTING","kW"]
["SMALL COMMERCIAL AND USL - PER CONNECTION",null,null,null,null,null,null,null,"Rate Rider for Disposition of Global Adjustment Sub-Account (2012) Applicable only to Non-RPP Customers \n      - effective until August 31, 2014",null,null,null,null,null,null,null,null,null,null,null,null,null,null,null,null,null,null,null,null,null,null,null,null,null,null,null,null,null,null,null,"SMALL COMMERCIAL AND USL - PER CONNECTION","kWh"]
["SMALL COMMERCIAL AND USL - PER METER",null,null,null,null,null,null,null,"Rate Rider for Disposition of Global Adjustment Sub-Account (2013) - effective until April 30, 2014 \n      Applicable only for Non-RPP Customers",null,null,null,null,null,null,null,null,null,null,null,null,null,null,null,null,null,null,null,null,null,null,null,null,null,null,null,null,null,null,null,"SMALL COMMERCIAL AND USL - PER METER","kWh"]
["STANDARD A GENERAL SERVICE AIR ACCESS",null,null,null,null,null,null,null,"Rate Rider for Disposition of Global Adjustment Sub-Account (2013) - effective until April 30, 2015 \n      Applicable only for Non-RPP Customers",null,null,null,null,null,null,null,null,null,null,null,null,null,null,null,null,null,null,null,null,null,null,null,null,null,null,null,null,null,null,null,"STANDARD A GENERAL SERVICE AIR ACCESS","kWh"]
["STANDARD A GENERAL SERVICE ROAD/RAIL",null,null,null,null,null,null,null,"Rate Rider for Disposition of Global Adjustment Sub-Account (2013) - effective until April 30, 2015 \n      Applicable only for Non-RPP Customers and excluding Wholesale Market Participants",null,null,null,null,null,null,null,null,null,null,null,null,null,null,null,null,null,null,null,null,null,null,null,null,null,null,null,null,null,null,null,"STANDARD A GENERAL SERVICE ROAD/RAIL","kWh"]
["STANDARD A GRID CONNECTED",null,null,null,null,null,null,null,"Rate Rider for Disposition of Global Adjustment Sub-Account (2013) - effective until April 30, 2017 \n      Applicable only for Non-RPP Customers",null,null,null,null,null,null,null,null,null,null,null,null,null,null,null,null,null,null,null,null,null,null,null,null,null,null,null,null,null,null,null,"STANDARD A GRID CONNECTED","kWh"]
["STANDARD A RESIDENTIAL AIR ACCESS",null,null,null,null,null,null,null,"Rate Rider For Disposition of Global Adjustment Sub-Account (2013) - effective until August 31, 2014 \n      Applicable only for Non-RPP Customers",null,null,null,null,null,null,null,null,null,null,null,null,null,null,null,null,null,null,null,null,null,null,null,null,null,null,null,null,null,null,null,"STANDARD A RESIDENTIAL AIR ACCESS","kWh"]
["STANDARD A RESIDENTIAL ROAD/RAIL",null,null,null,null,null,null,null,"Rate Rider for Disposition of Global Adjustment Sub-Account (2013) - effective until December 31, 2014 \n      Applicable only for Non-RPP Customers",null,null,null,null,null,null,null,null,null,null,null,null,null,null,null,null,null,null,null,null,null,null,null,null,null,null,null,null,null,null,null,"STANDARD A RESIDENTIAL ROAD/RAIL","kWh"]
["STANDBY - GENERAL SERVICE 1,000 - 5,000 KW",null,null,null,null,null,null,null,"Rate Rider for Disposition of Global Adjustment Sub-Account (2013) - effective until May 31, 2014 \n      Applicable only for Non-RPP Customers",null,null,null,null,null,null,null,null,null,null,null,null,null,null,null,null,null,null,null,null,null,null,null,null,null,null,null,null,null,null,null,"STANDBY - GENERAL SERVICE 1,000 - 5,000 KW","kW"]
["STANDBY - GENERAL SERVICE 50 - 1,000 KW",null,null,null,null,null,null,null,"Rate Rider for Disposition of Global Adjustment Sub-Account (2014) - effective until December 31, 2014. \n      Applicable only for Non-RPP - Class B Customers",null,null,null,null,null,null,null,null,null,null,null,null,null,null,null,null,null,null,null,null,null,null,null,null,null,null,null,null,null,null,null,"STANDBY - GENERAL SERVICE 50 - 1,000 KW","kW"]
["STANDBY - LARGE USE",null,null,null,null,null,null,null,"Rate Rider for Disposition of Global Adjustment Sub-Account (2014) - effective until December 31, 2014. \n      Applicable only for Non-RPP Customers",null,null,null,null,null,null,null,null,null,null,null,null,null,null,null,null,null,null,null,null,null,null,null,null,null,null,null,null,null,null,null,"STANDBY - LARGE USE","kW"]
["STANDBY DISTRIBUTION SERVICE",null,null,null,null,null,null,null,"Rate Rider for Disposition of Global Adjustment Sub-Account (2014) - effective until December 31, 2014. \n      Applicable only for Non-RPP Customers - Class A Customers",null,null,null,null,null,null,null,null,null,null,null,null,null,null,null,null,null,null,null,null,null,null,null,null,null,null,null,null,null,null,null,"STANDBY DISTRIBUTION SERVICE","kW"]
["STANDBY POWER",null,null,null,null,null,null,null,"Rate Rider for Disposition of Global Adjustment Sub-Account (2014) - effective until December 31, 2014. \n      Applicable only for Non-RPP Customers - Interval Metered",null,null,null,null,null,null,null,null,null,null,null,null,null,null,null,null,null,null,null,null,null,null,null,null,null,null,null,null,null,null,null,"STANDBY POWER","kW"]
["STANDBY POWER - APPROVED ON AN INTERIM BASIS",null,null,null,null,null,null,null,"Rate Rider for Disposition of Global Adjustment Sub-Account (2014) - effective until December 31, 2014. \n      Applicable only for Non-RPP Customers - Non Interval Metered",null,null,null,null,null,null,null,null,null,null,null,null,null,null,null,null,null,null,null,null,null,null,null,null,null,null,null,null,null,null,null,"STANDBY POWER - APPROVED ON AN INTERIM BASIS","kW"]
["STANDBY POWER GENERAL SERVICE 1,500 TO 4,999 KW",null,null,null,null,null,null,null,"Rate Rider for Disposition of Global Adjustment Sub-Account (2014) \n      - effective until December 31, 2015. Applicable only for Non-RPP Customers.  ",null,null,null,null,null,null,null,null,null,null,null,null,null,null,null,null,null,null,null,null,null,null,null,null,null,null,null,null,null,null,null,"STANDBY POWER GENERAL SERVICE 1,500 TO 4,999 KW","kW"]
["STANDBY POWER GENERAL SERVICE 50 TO 1,499 KW",null,null,null,null,null,null,null,"Rate Rider for Disposition of Post Retirement Actuarial Gain - effective until March 31, 2025",null,null,null,null,null,null,null,null,null,null,null,null,null,null,null,null,null,null,null,null,null,null,null,null,null,null,null,null,null,null,null,"STANDBY POWER GENERAL SERVICE 50 TO 1,499 KW","kW"]
["STANDBY POWER GENERAL SERVICE LARGE USE",null,null,null,null,null,null,null,"Rate Rider for Disposition of Residual Hisotrical Smart Meter Costs - effective until April 30, 2015",null,null,null,null,null,null,null,null,null,null,null,null,null,null,null,null,null,null,null,null,null,null,null,null,null,null,null,null,null,null,null,"STANDBY POWER GENERAL SERVICE LARGE USE","kW"]
["STREET LIGHTING",null,null,null,null,null,null,null,"Rate Rider for Disposition of Residual Hisotrical Smart Meter Costs - effective until April 30, 2017",null,null,null,null,null,null,null,null,null,null,null,null,null,null,null,null,null,null,null,null,null,null,null,null,null,null,null,null,null,null,null,"STREET LIGHTING","kW"]
["SUB TRANSMISSION [ST]",null,null,null,null,null,null,null,"Rate Rider for Disposition of Residual Historical Smart Meter Costs - effective until April 30, 2014",null,null,null,null,null,null,null,null,null,null,null,null,null,null,null,null,null,null,null,null,null,null,null,null,null,null,null,null,null,null,null,"SUB TRANSMISSION [ST]","kW"]
["UNMETERED SCATTERED LOAD",null,null,null,null,null,null,null,"Rate Rider for Disposition of Residual Historical Smart Meter Costs - effective until April 30, 2016",null,null,null,null,null,null,null,null,null,null,null,null,null,null,null,null,null,null,null,null,null,null,null,null,null,null,null,null,null,null,null,"UNMETERED SCATTERED LOAD","kWh"]
["URBAN GENERAL SERVICE DEMAND BILLED (50 KW AND ABOVE) [UGD]",null,null,null,null,null,null,null,"Rate Rider for Disposition of Residual Historical Smart Meter Costs - effective until August 31, 2014",null,null,null,null,null,null,null,null,null,null,null,null,null,null,null,null,null,null,null,null,null,null,null,null,null,null,null,null,null,null,null,"URBAN GENERAL SERVICE DEMAND BILLED (50 KW AND ABOVE) [UGD]","kW"]
["URBAN GENERAL SERVICE ENERGY BILLED (LESS THAN 50 KW) [UGE]",null,null,null,null,null,null,null,"Rate Rider for Disposition of Residual Historical Smart Meter Costs - effective until August 31, 2015",null,null,null,null,null,null,null,null,null,null,null,null,null,null,null,null,null,null,null,null,null,null,null,null,null,null,null,null,null,null,null,"URBAN GENERAL SERVICE ENERGY BILLED (LESS THAN 50 KW) [UGE]","kWh"]
["WESTPORT SEWAGE TREATMENT PLANT",null,null,null,null,null,null,null,"Rate Rider for Disposition of Residual Historical Smart Meter Costs - effective until December 31, 2014",null,null,null,null,null,null,null,null,null,null,null,null,null,null,null,null,null,null,null,null,null,null,null,null,null,null,null,null,null,null,null,"WESTPORT SEWAGE TREATMENT PLANT","kW"]
["YEAR-ROUND RESIDENTIAL - R2",null,null,null,null,null,null,null,"Rate Rider for Disposition of Residual Historical Smart Meter Costs – effective until December 31, 2014",null,null,null,null,null,null,null,null,null,null,null,null,null,null,null,null,null,null,null,null,null,null,null,null,null,null,null,null,null,null,null,"YEAR-ROUND RESIDENTIAL - R2","kWh"]
[null,null,null,null,null,null,null,null,"Rate Rider for Disposition of Residual Historical Smart Meter Costs - effective until December 31, 2015"]
[null,null,null,null,null,null,null,null,"Rate Rider for Disposition of Residual Historical Smart Meter Costs - effective until December 31, 2016"]
[null,null,null,null,null,null,null,null,"Rate Rider for Disposition of Residual Historical Smart Meter Costs - effective until October 31, 2014"]
[null,null,null,null,null,null,null,null,"Rate Rider for Disposition of Residual Historical Smart Meter Costs - effective until September 30, 2014"]
[null,null,null,null,null,null,null,null,"Rate Rider for Disposition of Residual Historical Smart Meter Costs - Non-Interval Metered \n      - effective until April 30, 2014"]
[null,null,null,null,null,null,null,null,"Rate Rider for Disposition of Residual Historical Smart Meter Costs 2 - in effect until the effective date\n      of the next cost of service-based rate order"]
[null,null,null,null,null,null,null,null,"Rate Rider for Disposition of Residual Historical Smart Meter Costs 3 - in effect until the effective date of\n      the next cost of service-based rate order"]
[null,null,null,null,null,null,null,null,"Rate Rider for Disposition of Residual Incremental Historical Smart Meter Costs \n      - effective until August 31, 2015"]
[null,null,null,null,null,null,null,null,"Rate Rider for Disposition of Stranded Meter costs - effective until April 30, 2015"]
[null,null,null,null,null,null,null,null,"Rate Rider for Disposition of Stranded Meter Costs - effective until April 30, 2016"]
[null,null,null,null,null,null,null,null,"Rate Rider for Disposition of Stranded Meter Costs - effective until April 30, 2017"]
[null,null,null,null,null,null,null,null,"Rate Rider for Global Adjustment Sub Account Disposition - effective until April 30, 2016 \n      Applicable only for Non RPP Customers"]
[null,null,null,null,null,null,null,null,"Rate Rider for Global Adjustment Sub-Account Disposition (2014) - effective until April 28, 2016 \n      Applicable only for Non-RPP Customers"]
[null,null,null,null,null,null,null,null,"Rate Rider for Global Adjustment Sub-Account Disposition (2014) - effective until April 30, 2015 \n      Applicable only for Non-RPP Customers"]
[null,null,null,null,null,null,null,null,"Rate Rider for Global Adjustment Sub-Account Disposition (2014) - effective until December 30, 2015 \n      Applicable only for Non-RPP Customers"]
[null,null,null,null,null,null,null,null,"Rate Rider for Global Adjustment Sub-Account Disposition (2014) - effective until December 31, 2014 \n      Applicable only for Non-RPP Customers"]
[null,null,null,null,null,null,null,null,"Rate Rider for Global Adjustment Sub-Account Disposition (2014) - effective until December 31, 2015 \n      Applicable only for Non-RPP Customers"]
[null,null,null,null,null,null,null,null,"Rate Rider for Global Adjustment Sub-Account Disposition Applicable only for Non-RPP Customers \n      - effective until April 30, 2015"]
[null,null,null,null,null,null,null,null,"Rate Rider for Incremental Capital - Distribution Volumetric - effective until April 30, 2016"]
[null,null,null,null,null,null,null,null,"Rate Rider for Incremental Capital - Service Charge - effective until April 30, 2016"]
[null,null,null,null,null,null,null,null,"Rate Rider for Incremental Capital (2012) - effective until April 30, 2015"]
[null,null,null,null,null,null,null,null,"Rate Rider for Lost Revenue Adjustment Mechanism Variance Account (LRAMVA) Recovery (2012 CDM Activities) \n      - effective until April 30, 2015"]
[null,null,null,null,null,null,null,null,"Rate Rider for Recover of Residual Historical Smart meter Costs - effective until June 30, 2014"]
[null,null,null,null,null,null,null,null,"Rate Rider for Recovery of CGAAP/CWIP Differential - in effect until December 31, 2016"]
[null,null,null,null,null,null,null,null,"Rate Rider for Recovery of Foregone Revenue - effective until April 30, 2015"]
[null,null,null,null,null,null,null,null,"Rate Rider for Recovery of Forgone Revenue - effective until April 30, 2015"]
[null,null,null,null,null,null,null,null,"Rate Rider for Recovery of Forgone Revenue - effective until December 31, 2014"]
[null,null,null,null,null,null,null,null,"Rate Rider for Recovery of Green Energy Act related costs - effective until December 31, 2014"]
[null,null,null,null,null,null,null,null,"Rate Rider for Recovery of Incremental Capital (2013) - in effect until the effective date of \n      the next cost of service-based rate order"]
[null,null,null,null,null,null,null,null,"Rate Rider for Recovery of Incremental Capital (2013) - in effect until the effective date of \n      the next cost of service-based rate order"]
[null,null,null,null,null,null,null,null,"Rate Rider for Recovery of Incremental Capital (2013) (per connection) - in effect until the effective date of \n      the next cost of service-based rate order"]
[null,null,null,null,null,null,null,null,"Rate Rider for Recovery of Incremental Capital (2013) (per connection)- in effect until the effective date of \n      the next cost of service-based rate order"]
[null,null,null,null,null,null,null,null,"Rate Rider for Recovery of Incremental Capital Costs"]
[null,null,null,null,null,null,null,null,"Rate Rider for Recovery of Incremental Capital Costs - effective until April 30, 2015"]
[null,null,null,null,null,null,null,null,"Rate Rider for Recovery of Incremental Capital Module Costs (2014) - in effect until the effective date\n      of the next cost of service-based rate order"]
[null,null,null,null,null,null,null,null,"Rate Rider for Recovery of Incremental Capital Module Costs (2014) - in effect until the effective date\n      of the next cost of service-based rate order"]
[null,null,null,null,null,null,null,null,"Rate Rider for Recovery of Lost Revenue Adjustment Mechanism ( LRAM)/Shared Savings Mechanism (SSM) (2012) \n      - effective until August 31, 2014"]
[null,null,null,null,null,null,null,null,"Rate Rider for Recovery of Lost Revenue Adjustment Mechanism (2013) \n      - effective until December 31, 2014"]
[null,null,null,null,null,null,null,null,"Rate Rider for Recovery of Lost Revenue Adjustment Mechanism (LRAM) - effective until April 30, 2016"]
[null,null,null,null,null,null,null,null,"Rate Rider for Recovery of Lost Revenue Adjustment Mechanism (LRAM) (pre-2011 CDM Activities) \n      - effective until April 30, 2015"]
[null,null,null,null,null,null,null,null,"Rate Rider for Recovery of Lost Revenue Adjustment Mechanism (LRAM) (pre-2011 CDM Activities) (2013) \n      - effective until April 30, 2015"]
[null,null,null,null,null,null,null,null,"Rate Rider for Recovery of Lost Revenue Adjustment Mechanism (LRAM)/Shared Savings"]
[null,null,null,null,null,null,null,null,"Rate Rider for Recovery of Lost Revenue Adjustment Mechanism (LRAM)/Shared Savings Mechanism \n      (SSM) - effective until December 31, 2018 and applicable in the service area excluding the former \n      service areas of Clinton Power and West Perth Power"]
[null,null,null,null,null,null,null,null,"Rate Rider for Recovery of Lost Revenue Adjustment Mechanism (LRAM)/Shared Savings Mechanism (SSM) - effective until \n      December 31, 2014 and applicable in the service area excluding the former service areas of Clinton Power and West Perth Power"]
[null,null,null,null,null,null,null,null,"Rate Rider for Recovery of Lost Revenue Adjustment Mechanism (LRAM)/Shared Savings Mechanism (SSM) - effective until \n      December 31, 2014 and applicable only in the former service area of Clinton Power"]
[null,null,null,null,null,null,null,null,"Rate Rider for Recovery of Lost Revenue Adjustment Mechanism (LRAM)/Shared Savings Mechanism (SSM) - effective until \n      December 31, 2014 and applicable only in the former service area of West Perth Power"]
[null,null,null,null,null,null,null,null,"Rate Rider for Recovery of Lost Revenue Adjustment Mechanism (LRAM)/Shared Savings Mechanism (SSM) - effective until December 31, 2014 and applicable in the service area excluding the former service area of Clinton Power"]
[null,null,null,null,null,null,null,null,"Rate Rider for Recovery of Lost Revenue Adjustment Mechanism (LRAM)/Shared Savings Mechanism (SSM) \n      - effective until March 31, 2016"]
[null,null,null,null,null,null,null,null,"Rate Rider for Recovery of Lost Revenue Adjustment Mechanism (LRAM)/Shared Savings Mechanism (SSM) (2012) \n      - effective until August 31, 2014"]
[null,null,null,null,null,null,null,null,"Rate Rider for Recovery of Lost Revenue Adjustment Mechanism (LRAM)/Shared Savings Mechanism (SSM) Recovery \n      - effective until April 30, 2015"]
[null,null,null,null,null,null,null,null,"Rate Rider for Recovery of Lost Revenue Adjustment Mechanism Variance Account (LRAMVA) (2014) \n      - effective until April 30, 2015"]
[null,null,null,null,null,null,null,null,"Rate Rider for Recovery of Residual Historical Smart Meter Costs - effective July 1, 2012 - April 30, 2016"]
[null,null,null,null,null,null,null,null,"Rate Rider for Recovery of Smart Meter Incremental Revenue Requirement - effective until the date of \n      the next cost of service-based rate order"]
[null,null,null,null,null,null,null,null,"Rate Rider for Recovery of Smart Meter Incremental Revenue Requirement - effective until the effective \n      date of the next cost of service-based rate order, or October 31, 2017, whichever occurs earlier"]
[null,null,null,null,null,null,null,null,"Rate Rider for Recovery of Smart Meter Incremental Revenue Requirement - in effect until the effective date of \n      the next cost of service-based rate order"]
[null,null,null,null,null,null,null,null,"Rate Rider for Recovery of Smart Meter Incremental Revenue Requirement - Non-Interval Metered - in effect until \n      the effective date of the next cost of service-based rate order"]
[null,null,null,null,null,null,null,null,"Rate Rider for Recovery of Smart Meter Incremental Revenue Requirements - in effect until the effective date \n      of the next cost of service application"]
[null,null,null,null,null,null,null,null,"Rate Rider for Recovery of Smart Meter Stranded Assets - effective until April 30, 2016"]
[null,null,null,null,null,null,null,null,"Rate Rider for Recovery of Storm Damage Costs - effective until August 31, 2017"]
[null,null,null,null,null,null,null,null,"Rate Rider for Recovery of Stranded Assets - effective until April 30, 2016"]
[null,null,null,null,null,null,null,null,"Rate Rider for Recovery of Stranded Meter Assets - effective July 1, 2012 - April 30, 2016"]
[null,null,null,null,null,null,null,null,"Rate Rider for Recovery of Stranded Meter Assets – effective until April 30, 2015"]
[null,null,null,null,null,null,null,null,"Rate Rider for Recovery of Stranded Meter Assets - effective until April 30, 2016"]
[null,null,null,null,null,null,null,null,"Rate Rider for Recovery of Stranded Meter Assets - effective until April 30, 2017"]
[null,null,null,null,null,null,null,null,"Rate Rider for Recovery of Stranded Meter Assets - effective until August 31, 2015"]
[null,null,null,null,null,null,null,null,"Rate Rider for Recovery of Stranded Meter Assets - effective until August 31, 2017"]
[null,null,null,null,null,null,null,null,"Rate Rider for Recovery of Stranded Meter Assets - effective until December 31, 2014"]
[null,null,null,null,null,null,null,null,"Rate Rider for Recovery of Stranded Meter Assets - effective until December 31, 2015"]
[null,null,null,null,null,null,null,null,"Rate Rider for Recovery of Stranded Meter Assets - effective until June 30, 2016"]
[null,null,null,null,null,null,null,null,"Rate Rider for Recovery of Stranded Meter Assets - effective until March 31, 2016"]
[null,null,null,null,null,null,null,null,"Rate Rider for Recovery of Stranded Meter Assets - effective until May 31, 2014"]
[null,null,null,null,null,null,null,null,"Rate Rider for Reversal of Deferral/Variance Account Disposition (2011) - effective until April 30, 2015"]
[null,null,null,null,null,null,null,null,"Rate Rider for Smart Meter Disposition - effective until April 30, 2016"]
[null,null,null,null,null,null,null,null,"Rate Rider for Smart Meter Incremental Revenue Requirement - in effect until the effective date of \n      the next cost of service-based rate order"]
[null,null,null,null,null,null,null,null,"Rate Rider for Smart Metering Entity Charge - effective until October 31, 2018"]
[null,null,null,null,null,null,null,null,"Rate Rider for Stranded Meter Cost Recovery - effective until April 30, 2017"]
[null,null,null,null,null,null,null,null,"Rate Rider for Tax Change"]
[null,null,null,null,null,null,null,null,"Rate Rider for Tax Change - effective until April 30, 2015"]
[null,null,null,null,null,null,null,null,"Rate Rider for Tax Change (2014) - effective until April 30, 2015"]
[null,null,null,null,null,null,null,null,"Retail Transmission Rate - Line and Transformation Connection Service Rate"]
[null,null,null,null,null,null,null,null,"Retail Transmission Rate - Line and Transformation Connection Service Rate - (less than 1,000 kW)"]
[null,null,null,null,null,null,null,null,"Retail Transmission Rate - Line and Transformation Connection Service Rate - Interval Metered"]
[null,null,null,null,null,null,null,null,"Retail Transmission Rate - Line and Transformation Connection Service Rate \n      - Interval Metered (1,000 to 4,999 kW)"]
[null,null,null,null,null,null,null,null,"Retail Transmission Rate - Line and Transformation Connection Service Rate \n      - Interval Metered (less than 1,000 kW)"]
[null,null,null,null,null,null,null,null,"Retail Transmission Rate - Line and Transformation Connection Service Rate \n      - Interval Metered < 1,000 kW"]
[null,null,null,null,null,null,null,null,"Retail Transmission Rate - Line and Transformation Connection Service Rate \n      FOR ALL SERVICE AREAS EXCEPT HENSALL"]
[null,null,null,null,null,null,null,null,"Retail Transmission Rate - Line and Transformation Connection Service Rate\n      - Interval Metered > 1,000 kW"]
[null,null,null,null,null,null,null,null,"Retail Transmission Rate - Line Connection Service Rate"]
[null,null,null,null,null,null,null,null,"Retail Transmission Rate - Network Service Rate"]
[null,null,null,null,null,null,null,null,"Retail Transmission Rate - Network Service Rate - (less than 1,000 kW)"]
[null,null,null,null,null,null,null,null,"Retail Transmission Rate - Network Service Rate - Interval Metered"]
[null,null,null,null,null,null,null,null,"Retail Transmission Rate - Network Service Rate - Interval Metered (1,000 to 4,999 kW)"]
[null,null,null,null,null,null,null,null,"Retail Transmission Rate - Network Service Rate - Interval Metered (less than 1,000 kW)"]
[null,null,null,null,null,null,null,null,"Retail Transmission Rate - Network Service Rate - Interval Metered > 1,000 kW"]
[null,null,null,null,null,null,null,null,"Retail Transmission Rate - Transformation Connection Service Rate"]
[null,null,null,null,null,null,null,null,"Rider for Global Adjustment Sub-Account Disposition (2012) - effective until April 30, 2016 \n      Applicable only for Non-RPP Customers"]
[null,null,null,null,null,null,null,null,"Rural or Remote Electricity Rate Protection Charge (RRRP)"]
[null,null,null,null,null,null,null,null,"Sentinel lights (dusk-to-dawn) connected to unmetered wires will have a flat rate monthly energy charge \nadded to the regular customer bill. Further servicing details are available in the distributor’s Conditions \nof Service."]
[null,null,null,null,null,null,null,null,"Service Charge"]
[null,null,null,null,null,null,null,null,"Service Charge (per connection)"]
[null,null,null,null,null,null,null,null,"Service Charge (per customer)"]
[null,null,null,null,null,null,null,null,"Service Charge (per light)"]
[null,null,null,null,null,null,null,null,"Smart Grid Funding Adder (2014) - in effect until December 31, 2014"]
[null,null,null,null,null,null,null,null,"Smart Meter Disposition Rider"]
[null,null,null,null,null,null,null,null,"Smart Meter Entity Charge"]
[null,null,null,null,null,null,null,null,"Smart Meter Incremental Revenue Requirement Rate Rider"]
[null,null,null,null,null,null,null,null,"Standard Supply Service - Administrative Charge (if applicable)"]
[null,null,null,null,null,null,null,null,"Standby Charge - for a month where standby power is not provided, the charge is based on the applicable \nGeneral Service 50 to 4,999 kW or Large Use Distribution Volumetric Charge applied to the contracted \namount (e.g. Nameplate rating of generating facility)."]
[null,null,null,null,null,null,null,null,"Standby Charge - for a month where standby power is not provided. The charge is applied to the amount of \nreserved load transfer capacity contracted or the amount of monthly peak load displaced by a generating \nfacility"]
[null,null,null,null,null,null,null,null,"Standby Charge - for a month where standby power is not provided. The charge is applied to the contracted \namount (e.g. nameplate rating of the generation facility)."]
[null,null,null,null,null,null,null,null,"Wholesale Market Service Rate"]

{"sheet":"Sheet1","index":16,"n_rows":0,"n_cols":0,"rows_kept":0,"cut":false,"hidden":true,"merged":[]}

{"sheet":"10a. Proposed ACM Projects","index":17,"n_rows":109,"n_cols":7,"rows_kept":109,"cut":false,"hidden":false,"merged":[[12,2,12,5],[25,6,26,6],[24,2,24,5]]}
[]
[]
[]
[]
[]
[]
[]
[]
[]
[]
["Identify ALL Proposed ACM projects and related CAPEX costs in the relevant years"]
[]
[null,"Cost of Service","Price Cap IR"]
[null,"Test Year","Year 1","Year 2","Year 3","Year 4"]
[null,{"$f":"'1. Information Sheet'!K26","v":2017},{"$f":"B15+1","v":2018},{"$f":"C15+1","v":2019},{"$f":"D15+1","v":2020},{"$f":"E15+1","v":2021}]
["Distribution System Plan CAPEX",32575000,35717000,32959000,33893000,33807000]
[]
["Materiality Threshold",null,{"$f":"IF('9. Threshold Test'!$E$60=\"\", 0, '9. Threshold Test'!$E$60)","v":24378971.922117781},{"$f":"IF('9. Threshold Test'!$E$61=\"\", 0, '9. Threshold Test'!$E$61)","v":24448960.919739977},{"$f":"IF('9. Threshold Test'!$E$62=\"\", 0, '9. Threshold Test'!$E$62)","v":24520015.83490245},{"$f":"IF('9. Threshold Test'!$E$63=\"\", 0, '9. Threshold Test'!$E$63)","v":24592152.901302509}]
[]
["Maximum Eligible Incremental Capital (Forecasted CAPEX less Threshold)",null,{"$f":"MAX(0,C16-C18)","v":11338028.077882219},{"$f":"MAX(0,D16-D18)","v":8510039.0802600235},{"$f":"MAX(0,E16-E18)","v":9372984.1650975496},{"$f":"MAX(0,F16-F18)","v":9214847.098697491}]
[]
["Maximum Eligible Incremental Capital (Forecasted Capex less Threshold)",null,{"$f":"IF(C18>C16,0,C16-C18)","v":11338028.077882219},{"$f":"IF(D18>D16,0,D16-D18)","v":8510039.0802600235},{"$f":"IF(E18>E16,0,E16-E18)","v":9372984.1650975496},{"$f":"IF(F18>F16,0,F16-F18)","v":9214847.098697491}]
[]
["Proposed Capital Projects Eligible for ACM treatment"]
[null,{"$f":"B13","v":"Cost of Service"},{"$f":"C13","v":"Price Cap IR"}]
["Project Descriptions:","Test Year","Year 1","Year 2","Year 3","Year 4","Total"]
[null,{"$f":"B15","v":2017},{"$f":"C15","v":2018},{"$f":"D15","v":2019},{"$f":"E15","v":2020},{"$f":"F15","v":2021}]
["Nelson TS Capital Contribution",null,7165590,null,null,1450000,{"$f":"SUM(C28:F28)","v":8615590}]
["JD Edwards",null,2000000,null,null,null,2000000]
["HONI CCRA True-up's Talbot and Buchanan",null,1000000,null,null,null,1000000]
[null,null,null,null,null,null,0]
[null,null,null,null,null,null,0]
[null,null,null,null,null,null,0]
[null,null,null,null,null,null,0]
[null,null,null,null,null,null,0]
[null,null,null,null,null,null,0]
[null,null,null,null,null,null,0]
[null,null,null,null,null,null,0]
[null,null,null,null,null,null,0]
[null,null,null,null,null,null,0]
[null,null,null,null,null,null,0]
[null,null,null,null,null,null,0]
[null,null,null,null,null,null,0]
[null,null,null,null,null,null,0]
[null,null,null,null,null,null,0]
[null,null,null,null,null,null,0]
[null,null,null,null,null,null,0]
[]
["Total Cost of ACM Projects",null,{"$f":"SUM(C28:C47)","v":10165590},{"$f":"SUM(D28:D47)","v":0},{"$f":"SUM(E28:E47)","v":0},{"$f":"SUM(F28:F47)","v":1450000}]
[]
["Maximum Allowed Incremental Capital",null,{"$f":"MIN(C49,C22)","v":10165590},{"$f":"MIN(D49,D22)","v":0},{"$f":"MIN(E49,E22)","v":0},{"$f":"MIN(F49,F22)","v":1450000},{"$f":"SUM(C51:F51)","v":11615590}]
[]
[]
[]
[]
[]
[]
[]
[]
[]
[]
[]
[]
[]
[]
[]
[]
[]
[]
[]
[]
[]
[]
[]
[]
[]
[]
[]
[]
[]
[]
[]
[]
[]
[]
[]
[]
[]
[]
[]
[]
[]
[]
[]
[]
[]
[]
[]
[]
[]
[]
[]
[]
[]
[]
[]
[]
[]
["Maximum Allowed Incremental Capital",null,{"$f":"MIN(C49,C22)","v":10165590},{"$f":"MIN(D49,D22)","v":0},0,1450000]

{"sheet":"10b. Proposed ACM ICM Projects","index":18,"n_rows":82,"n_cols":15,"rows_kept":82,"cut":false,"hidden":true,"merged":[[48,3,48,14],[12,3,12,6],[51,1,54,1],[57,3,57,5],[57,6,57,8],[57,9,57,11],[57,12,57,14],[49,3,49,5],[49,6,49,8],[49,9,49,11],[49,12,49,14]]}
[]
[]
[]
[]
[]
[]
[]
[]
[]
[]
["Identify ALL Proposed ACM projects and related CAPEX costs in the relevant years"]
[]
[null,null,"Cost of Service","Price Cap IR"]
[null,null,"Test Year","Year 1","Year 2","Year 3","Year 4"]
[null,null,{"$f":"'1. Information Sheet'!K26","v":2017},{"$f":"C15+1","v":2018},{"$f":"D15+1","v":2019},{"$f":"E15+1","v":2020},{"$f":"F15+1","v":2021}]
["Distribution System Plan CAPEX"]
[]
["Materiality Threshold",null,null,{"$f":"IF('9. Threshold Test'!$E$60=\"\", 0, '9. Threshold Test'!$E$60)","v":24378971.922117781},{"$f":"IF('9. Threshold Test'!$E$61=\"\", 0, '9. Threshold Test'!$E$61)","v":24448960.919739977},{"$f":"IF('9. Threshold Test'!$E$62=\"\", 0, '9. Threshold Test'!$E$62)","v":24520015.83490245},{"$f":"IF('9. Threshold Test'!$E$63=\"\", 0, '9. Threshold Test'!$E$63)","v":24592152.901302509}]
[]
["Maximum Eligible Incremental Capital (Forecasted Capex less Threshold)",null,0,{"$f":"IF(D18>D16,0,D16-D18)","v":0},{"$f":"IF(E18>E16,0,E16-E18)","v":0},{"$f":"IF(F18>F16,0,F16-F18)","v":0},{"$f":"IF(G18>G16,0,G16-G18)","v":0}]
[]
["Project Descriptions:","Type","Test Year","Year 1","Year 2","Year 3","Year 4","Total"]
[null,null,{"$f":"C15","v":2017},{"$f":"D15","v":2018},{"$f":"E15","v":2019},{"$f":"F15","v":2020},{"$f":"G15","v":2021}]
[null,null,null,null,null,null,null,{"$f":"SUM(D24:G24)","v":0}]
[null,null,null,null,null,null,null,0]
[null,null,null,null,null,null,null,0]
[null,null,null,null,null,null,null,0]
[null,null,null,null,null,null,null,0]
[null,null,null,null,null,null,null,0]
[null,null,null,null,null,null,null,0]
[null,null,null,null,null,null,null,0]
[null,null,null,null,null,null,null,0]
[null,null,null,null,null,null,null,0]
[null,null,null,null,null,null,null,0]
[null,null,null,null,null,null,null,0]
[null,null,null,null,null,null,null,0]
[null,null,null,null,null,null,null,0]
[null,null,null,null,null,null,null,0]
[null,null,null,null,null,null,null,0]
[null,null,null,null,null,null,null,0]
[null,null,null,null,null,null,null,0]
[null,null,null,null,null,null,null,0]
[null,null,null,null,null,null,null,0]
[]
["Total Cost of ACM Projects",null,0,{"$f":"SUM(D24:D43)","v":0},{"$f":"SUM(E24:E43)","v":0},{"$f":"SUM(F24:F43)","v":0},{"$f":"SUM(G24:G43)","v":0},{"$f":"SUM(D45:G45)","v":0}]
[]
["Maximum Allowed Incremental Capital",null,null,{"$f":"MIN(D45,D20)","v":0},{"$f":"MIN(E45,E20)","v":0},{"$f":"MIN(F45,F20)","v":0},{"$f":"MIN(G45,G20)","v":0},{"$f":"SUM(D47:G47)","v":0}]
[]
[null,null,null,"Price Cap IR"]
[null,null,"Test Year","Year 1",null,null,"Year 2",null,null,"Year 3",null,null,"Year 4"]
[null,null,{"$f":"C15","v":2017},null,{"$f":"D15","v":2018},null,null,{"$f":"E15","v":2019},null,null,{"$f":"F15","v":2020},null,null,{"$f":"G15","v":2021}]
["Distribution System Plan CAPEX",null,{"$f":"C16","v":0},{"$f":"D16","v":0},null,null,{"$f":"E16","v":0},null,null,{"$f":"F16","v":0},null,null,{"$f":"G16","v":0}]
[]
["Materiality Threshold",null,null,{"$f":"D18","v":24378971.922117781},null,null,{"$f":"E18","v":24448960.919739977},null,null,{"$f":"F18","v":24520015.83490245},null,null,{"$f":"G18","v":24592152.901302509}]
[]
["Maximum Eligible Incremental Capital (Forecasted Capex less Threshold)",null,0,{"$f":"D20","v":0},null,null,{"$f":"E20","v":0},null,null,{"$f":"F20","v":0},null,null,{"$f":"G20","v":0}]
[]
[null,null,"Test Year","Year 1",null,null,"Year 2",null,null,"Year 3",null,null,"Year 4"]
[null,null,{"$f":"C15","v":2017},null,{"$f":"D15","v":2018},null,null,{"$f":"E15","v":2019},null,null,{"$f":"F15","v":2020},null,null,{"$f":"G15","v":2021}]
["Project Descriptions:","Type",null,"Proposed ACM/ICM","Amortization Expense","CCA","Proposed ACM/ICM","Amortization Expense","CCA","Proposed ACM/ICM","Amortization Expense","CCA","Proposed ACM/ICM","Amortization Expense","CCA"]
[{"$f":"IF(OR(A24=\"\", A24=0), \"\", A24)","v":""},"",null,{"$f":"IF(OR(D24=\"\", D24=0), 0, D24)","v":0},null,null,{"$f":"IF(OR(E24=\"\", E24=0), 0, E24)","v":0},null,null,{"$f":"IF(OR(F24=\"\", F24=0), 0, F24)","v":0},null,null,{"$f":"IF(OR(G24=\"\", G24=0), 0, G24)","v":0}]
["","",null,0,null,null,0,null,null,0,null,null,0]
["","",null,0,null,null,0,null,null,0,null,null,0]
["","",null,0,null,null,0,null,null,0,null,null,0]
["","",null,0,null,null,0,null,null,0,null,null,0]
["","",null,0,null,null,0,null,null,0,null,null,0]
["","",null,0,null,null,0,null,null,0,null,null,0]
["","",null,0,null,null,0,null,null,0,null,null,0]
["","",null,0,null,null,0,null,null,0,null,null,0]
["","",null,0,null,null,0,null,null,0,null,null,0]
["","",null,0,null,null,0,null,null,0,null,null,0]
["","",null,0,null,null,0,null,null,0,null,null,0]
["","",null,0,null,null,0,null,null,0,null,null,0]
["","",null,0,null,null,0,null,null,0,null,null,0]
["","",null,0,null,null,0,null,null,0,null,null,0]
["","",null,0,null,null,0,null,null,0,null,null,0]
["","",null,0,null,null,0,null,null,0,null,null,0]
["","",null,0,null,null,0,null,null,0,null,null,0]
["","",null,0,null,null,0,null,null,0,null,null,0]
["","",null,0,null,null,0,null,null,0,null,null,0]
[]
["Total Cost of Projects",null,null,{"$f":"SUM(D61:D80)","v":0},{"$f":"SUM(E61:E80)","v":0},0,0,0,0,0,0,0,0,0,0]

{"sheet":"11. Incremental Capital Adj.","index":19,"n_rows":83,"n_cols":6,"rows_kept":83,"cut":false,"hidden":true,"merged":[]}
[]
[]
[]
[]
[]
[]
[]
[]
[]
[]
[]
[null,"Incremental Capital Adjustment"]
[]
[]
[]
[null,"Current Revenue Requirement"]
[]
[null,"Current Revenue Requirement - Total",null,null,{"$f":"'6. Rev_Requ_Check'!E62","v":69004126.438132778},"A"]
[]
[]
[null,"Return on Rate Base"]
[null,"Incremental Capital",null,null,{"$f":"IF('1. Information Sheet'!F26=\"COS\",0, VLOOKUP(\"Maximum Allowed Incremental Capital\",'10b. Proposed ACM ICM Projects'!$A$14:$G$52,MATCH(\"Year \" & '1. Information Sheet'!F28,'10b. Proposed ACM ICM Projects'!$A$14:$G$14,0),FALSE))","v":0},"B"]
[null,"Depreciation Expense",null,null,{"$f":"IF('1. Information Sheet'!F26=\"COS\", 0, IF(\"Year \" & '1. Information Sheet'!F28=\"Year 1\", '10b. Proposed ACM ICM Projects'!E82, IF(\"Year \" & '1. Information Sheet'!F28=\"Year 2\", '10b. Proposed ACM ICM Projects'!H82,IF(\"Year \" & '1. Information Sheet'!F28=\"Year 3\", '10b. Proposed ACM ICM Projects'!K82, IF(\"Year \" & '1. Information Sheet'!F28=\"Year 4\", '10b. Proposed ACM ICM Projects'!N82, \"\")))))","v":0},"C"]
[null,"Incremental Capital to be included in Rate Base",null,null,{"$f":"E22-E23","v":0},"D = B - C"]
[]
[null,"Deemed ShortTerm Debt %",{"$f":"'6. Rev_Requ_Check'!C36","v":0.04},"E",{"$f":"E24*C26","v":0},"G = D * E"]
[null,"Deemed Long Term Debt %",{"$f":"'6. Rev_Requ_Check'!C37","v":0.56000000000000005},"F",{"$f":"E24*C27","v":0},"H = D * F"]
[]
[null,"Short Term Interest",{"$f":"'6. Rev_Requ_Check'!C40","v":1.6500000000000001E-2},"I",{"$f":"E26*C29","v":0},"K = G * I"]
[null,"Long Term Interest",{"$f":"'6. Rev_Requ_Check'!C41","v":2.7117413941174992E-2},"J",{"$f":"E27*C30","v":0},"L = H * J"]
[]
[null,"Return on Rate Base - Interest",null,null,{"$f":"SUM(E29:E30)","v":0},"M = K + L"]
[]
[]
[null,"Deemed Equity %",{"$f":"'6. Rev_Requ_Check'!C38","v":0.39999999999999991},"N",{"$f":"E24*C35","v":0},"P = D * N"]
[]
[null,"Return on Rate Base -Equity",{"$f":"'6. Rev_Requ_Check'!C42","v":9.1899999999999996E-2},"O",{"$f":"E35*C37","v":0},"Q = P * O"]
[]
[null,"Return on Rate Base - Total",null,null,{"$f":"E32+E37","v":0},"R = M + Q"]
[]
[]
[]
[null,"Amortization Expense"]
[]
[null,"Amortization Expense - Incremental",null,"C",{"$f":"E23","v":0},"S"]
[]
[]
[null,"Grossed up PIL's"]
[]
[null,"Regulatory Taxable Income",null,"O",{"$f":"E37","v":0},"T "]
[]
[null,"Add Back Amortization Expense",null,"S",{"$f":"E45","v":0},"U"]
[]
[null,"Deduct CCA",null,null,{"$f":"IF('1. Information Sheet'!F26=\"COS\", \"\", IF(\"Year \" & '1. Information Sheet'!F28=\"Year 1\", '10b. Proposed ACM ICM Projects'!F82, IF(\"Year \" & '1. Information Sheet'!F28=\"Year 2\", '10b. Proposed ACM ICM Projects'!I82,IF(\"Year \" & '1. Information Sheet'!F28=\"Year 3\", '10b. Proposed ACM ICM Projects'!L82, IF(\"Year \" & '1. Information Sheet'!F28=\"Year 4\", '10b. Proposed ACM ICM Projects'!O82, \"\")))))","v":""},"V"]
[]
[null,"Incremental Taxable Income",null,null,{"$f":"E50+E52-E54","v":{"$error":"#VALUE!"}},"W = T + U - V"]
[]
[null,"Current Tax Rate",0.26500000000000001,"X"]
[]
[null,"PIL's Before Gross Up",null,null,{"$f":"E56*C58","v":{"$error":"#VALUE!"}},"Y = W * X"]
[]
[null,"Incremental Grossed Up PIL's",null,null,{"$f":"E60/(1-C58)","v":{"$error":"#VALUE!"}},"Z = Y / ( 1 - X ) "]
[]
[]
[null,"Ontario Capital Tax"]
[null,"Incremental Capital CAPEX",null,null,null,"AA"]
[]
[null,"Less : Available Capital Exemption (if any)",null,null,null,"AB"]
[]
[null,"Incremental Capital CAPEX subject to OCT",null,null,null,"AC = AA - AB"]
[]
[null,"Ontario Capital Tax Rate (F1.1 Z-Factor Tax Changes)",null,"AD"]
[]
[null,"Incremental Ontario Capital Tax",null,null,null,"AE = AC * AD"]
[]
[]
[null,"Incremental Revenue Requirement"]
[null,"Return on Rate Base - Total",null,"Q",{"$f":"E39","v":0},"AA"]
[null,"Amortization Expense - Total",null,"S",{"$f":"E45","v":0},"AB"]
[null,"Incremental Grossed Up PIL's",null,"Z",{"$f":"E62","v":{"$error":"#VALUE!"}},"AC"]
[]
[]
[null,"Incremental Revenue Requirement",null,null,{"$f":"SUM(E78:E81)","v":{"$error":"#VALUE!"}},"AD = AA + AB + AC"]

{"sheet":"12. Opt 1-Rate Rider Calc F & V","index":20,"n_rows":25,"n_cols":26,"rows_kept":25,"cut":false,"hidden":true,"merged":[[12,0,12,3],[12,4,12,5]]}
[null,null,null,null,null,null,null,null,null,null,null,null,null,null,null,null,null,null,null,null,null,null,null,null,null,true]
[null,null,null,null,null,null,null,null,null,null,null,null,null,null,null,null,null,null,null,null,null,null,null,null,null,false]
[null,null,null,null,null,null,null,null,null,null,null,null,null,null,null,null,null,null,null,null,null,null,null,null,null,false]
[]
[]
[]
[]
[]
[]
[]
[]
[]
["Calculation of incremental rate rider.  Choose one of the 3 options:"]
[]
["Rate Class",null,"Service Charge % Revenue","Distribution Volumetric Rate % Revenue kWh","Distribution Volumetric Rate % Revenue kW","Service Charge Revenue","Distribution Volumetric Rate Revenue kWh","Distribution Volumetric Rate Revenue kW","Total Revenue by Rate Class",null,"Billed Customers or Connections","Billed kWh","Billed kW",null,"Service Charge Rate Rider","Distribution Volumetric Rate kWh Rate Rider","Distribution Volumetric Rate kW Rate Rider"]
[null,null,"From Sheet 8","From Sheet 8","From Sheet 8","Col C * Col Itotal","Col  D* Col Itotal","Col  E* Col Itotal",null,null,"From Sheet 4","From Sheet 4","From Sheet 4",null,"Col I / Col K / 12","Col I / Col L","Col I / Col M"]
["RESIDENTIAL REGULAR",null,0,0,0]
["GENERAL SERVICE LESS THAN 50 KW",null,0,0,0]
["GENERAL SERVICE 500 TO 4,999 KW",null,0,0,0]
["UNMETERED SCATTERED LOAD",null,0,0,0]
["SENTINEL LIGHTING",null,0,0,0]
["STREET LIGHTING",null,0,0,0]
["Total",null,{"$f":"SUM(C17:C22)","v":0},0,0,0,0,0,0,null,{"$f":"SUM(K17:K22)","v":0},{"$f":"SUM(L17:L22)","v":0},{"$f":"SUM(M17:M22)","v":0}]
[null,null,null,null,null,null,null,null,{"$error":"#VALUE!"}]
[null,null,null,null,null,null,null,null,"From Sheet 11, E83"]